{"text_format":"1","workbook":"xlsx","n_sheets":15,"sheets":["CAPA","Analise mercado","Inovação","Postos Trabalho","VENDAS EXTERIOR","CRITERIOS_SELECAO_AUTOVAL","taxa base_majorações","Financiamento","Balanço empresa ","Balanço da empresa pós Proj","D. Resultados empresa","D. Result da empresa pós Proj","Balanço do Projeto","D. Resultados do Projeto","Folha2"],"not_rendered":{"charts":0,"images":39,"macros":0,"external_links":0,"defined_names":54,"comments":0,"pivot_tables":0},"unopened":[],"bounds":{"document_bytes":16777216,"sheet_cells":100000,"rows_first":2000,"rows_last":500,"rows_between":2000,"halvings":0,"cell_chars":16384,"cell_head_chars":4096},"cells_cut":0,"cells_raw":0,"read":"whole","date_system":"1900"}

{"sheet":"CAPA","index":0,"n_rows":16,"n_cols":14,"rows_kept":16,"cut":false,"hidden":false,"merged":[[8,2,8,17],[11,2,11,5],[0,17,0,19],[15,13,15,17],[15,2,15,11]]}
[null,"V_3_08_03_2019_15_33"]
[]
[]
[]
[]
[]
[null,null,"BENEFICIÁRIO:"]
[]
[]
[]
[null,null,"NIF:"]
[]
[]
[null,null,"SISTEMA DE INCENTIVOS AO EMPREENDEDORISMO DA REGIÃO AUTÓNOMA DA MADEIRA:"]
[]
[null,null,"EMPREENDER 2020 - Primeira alteração ",null,null,null,null,null,null,null,null,null,null,"Portaria nº 408/2017, 16 de outubro"]

{"sheet":"Analise mercado","index":1,"n_rows":163,"n_cols":12,"rows_kept":163,"cut":false,"hidden":false,"merged":[[142,4,142,13],[22,4,22,13],[105,3,105,13],[118,3,118,13],[19,3,19,13],[26,4,26,13],[59,3,59,13],[81,3,81,13],[121,4,121,13],[141,4,141,13],[71,3,79,4],[139,3,140,12],[62,3,69,4],[114,9,116,9],[94,3,102,4],[94,7,94,9],[85,3,92,4],[85,7,85,9],[4,2,4,12],[7,2,7,5],[11,2,11,12],[85,11,85,12],[14,2,14,14],[60,7,60,9],[60,11,60,12],[71,7,71,9],[62,7,62,9],[62,11,62,12],[71,11,71,12],[28,3,28,12],[161,3,161,12],[162,3,162,12],[143,3,143,12],[123,3,123,12],[45,3,45,12],[160,3,160,13],[110,7,112,7],[110,9,112,9],[110,3,112,4],[83,7,83,9],[114,3,116,4],[114,7,116,7],[107,7,108,7],[107,9,108,9],[94,11,94,12],[83,11,83,12]]}
[]
[]
[null,null,"BENEFICIÁRIO:"]
[]
[null,null,{"$f":"+CAPA!C9","v":0}]
[]
[null,null,"NIF:"]
[null,null,{"$f":"+CAPA!C12","v":0}]
[]
[null,null,"SISTEMA DE INCENTIVOS:"]
[]
[null,null,{"$f":"+CAPA!C16","v":"EMPREENDER 2020 - Primeira alteração "}]
[]
[]
[null,null,"ANÁLISE DO MERCADO"]
[]
[null,null,"  "]
[]
[null,null,null,"Análise do Mercado "]
[null,null,null," - Nesta secção pretende-se a identificação da abrangência comercial da empresa e qual o impacto dos seus produtos no mercado, bem como a descrição de como respondem às necessidades dos seus clientes."]
[null,null,null,"Breve Descrição do Mercado"]
[null,null,null,"-","Quem são e onde estão os atuais clientes da empresa e quem serão e onde estarão no horizonte temporal do projeto? "]
[null,null,null,"-","Que necessidades dos clientes satisfazem os produtos da empresa? Que benefícios procura o consumidor? E que necessidades / benefícios pretendem satisfazer no futuro? "]
[null,null,null,"-","Com que tecnologias satisfazem essas necessidades? Vão passar a utilizar outras? Perspetiva-se alterações de tecnologia? Quais?"]
[null,null,null,"-","Através de que canais de distribuição vendem os produtos/serviços? O que pretendem fazer no futuro sobre os canais de distribuição? "]
[null,null,null,"-","Que fatores influenciam a procura (motivações de compra)? Que tipo de consumidor compra os produtos da concorrência? "]
[null,null,null,null,"Qual a segmentação que faz do mercado? Que parcela do mercado a sua empresa visa atingir? Com base em que critérios é feita essa divisão do mercado potencial? Como é que esses segmentos são quantificados? "]
[null,null,null,"-","Qual a dimensão atual e potencial do mercado? "]
[null,null,null,"Fundamentação"]
[]
[]
[]
[]
[]
[]
[]
[]
[]
[]
[]
[]
[null,null,null,"Análise da Concorrência "]
[null,null,null," - Esta secção visa dar a noção da dimensão concorrencial da empresa beneficiária, bem como a sua capacidade de adaptação perante os desafios do mercado;"]
[null,null,null," - ","Identificação dos seus concorrentes diretos, que têm como alvos os mesmos segmentos de mercado da empresa;"]
[null,null,null," - ","Identificação das áreas de competitividade críticas para o negócio em que a empresa se insere."]
[null,null,null,"Fundamentação"]
[]
[]
[]
[]
[]
[]
[]
[]
[]
[]
[]
[]
[null,null,null,"Análise SWOT"]
[null,null,null," - Aqui deve inserir nos campos respetivos (Fatores Internos e Externos, Pontos Fracos, Pontos Fortes, Oportunidade e Ameaças) todos os elementos resumo que resultam da sua análise SWOT."]
[]
[]
[null,null,null,"FATORES\nINTERNOS",null,null,null,"PONTOS FORTES",null,null,null,"PONTOS FRACOS"]
[]
[]
[]
[]
[]
[]
[]
[]
[null,null,null,"FATORES\nEXTERNOS",null,null,null,"OPORTUNIDADES",null,null,null,"AMEAÇAS"]
[]
[]
[]
[]
[]
[]
[]
[]
[]
[null,null,null," - Para além da síntese da análise SWOT indicada no quadro anterior, deve ainda desenvolver uma análise qualificada/dinâmica baseada na referida análise SWOT, identificando: Riscos, Avisos, Desafios/Apostas e Restrições."]
[]
[null,null,null,null,null,null,null,"Oportunidades",null,null,null,"Ameaças"]
[]
[null,null,null,"Pontos\nFortes",null,null,null,"Apostas",null,null,null,"Avisos"]
[]
[]
[]
[]
[]
[]
[]
[]
[null,null,null,"Pontos\nFracos",null,null,null,"Restrições",null,null,null,"Riscos"]
[]
[]
[]
[]
[]
[]
[]
[]
[]
[null,null,null,"Qual a direção de crescimento do mercado"]
[null,null,null," - Neste quadro pretende-se ter a identificação da forma como o beneficiário pretende orientar a sua atividade futura nos mercados, selecionando apenas uma das seguintes opções (cujos conceitos subjacentes se encontram explicados na caixa)."]
[null,null,null," - Justifique a sua direção de crescimento no mercado."]
[null,null,null,null,null,null,null,"PRODUTOS\nATUAIS",null,"PRODUTOS\nNOVOS"]
[]
[]
[null,null,null,"MERCADOS\nATUAIS",null,null,null,"Penetração",null,"Extensão \ndo Produto"]
[]
[]
[]
[null,null,null,"MERCADOS\nNOVOS",null,null,null,"Extensão \ndo Mercado",null,"Diversificação"]
[]
[]
[]
[null,null,null," - Tanto no quadro “Qual a duração de crescimentos no mercado” como na justificação posterior o beneficiário deverá ter em consideração os seguintes conceitos: "]
[null,null,null," - ","Penetração - Aumento das quotas de mercado com os produtos atuais e nos mercados atuais; "]
[null,null,null," - ","Extensão do produto - aumento da gama e/ou criação de novos produtos, mantendo os mercados atuais; "]
[null,null,null," - ","Extensão do mercado - entrada em novos mercados (e.g. entrada ou alargamento do mercado de exportação ou cobertura de mais segmentos no mercado nacional), com os mesmos produtos; "]
[null,null,null," -","Diversificação - lançamento de novos produtos e, em simultâneo, entrada em novos mercados."]
[null,null,null,"Fundamentação"]
[]
[]
[]
[]
[]
[]
[]
[]
[]
[]
[]
[]
[]
[]
[null,null,null,"Marcas Próprias (preenchimento quando aplicável) "]
[null,null,null," - Pretende-se a identificação das marcas pertencentes à empresa beneficiária, ou a criar, e caso se encontrem registadas, a indicação de se esse registo é nacional ou internacional. Deverá também identificar a dimensão concorrencial da empresa beneficiária com a indicação das suas marcas e das marcas concorrentes na mesma área de negócio do projeto assim como da sua capacidade de diferenciação/reconhecimento."]
[]
[null,null,null," - ","A empresa detém marca própria? Esta marca está registada em Portugal e noutros mercados? Se não tem marca própria que instrumentos de diferenciação/reconhecimento utiliza no mercado face à concorrência? "]
[null,null,null," - "," Identificação das principais marcas concorrentes e a sua perceção sobre a notoriedade da sua marca e a dos seus concorrentes. Qual o posicionamento que perspetiva para o pós projeto? "]
[null,null,null,"Fundamentação"]
[]
[]
[]
[]
[]
[]
[]
[]
[]
[]
[]
[]
[]
[]
[]
[null,null,null,"Construção e Material Circulante: "]
[null,null,null," - O beneficiário deverá, nesta página fundamentar, quando aplicável, as despesas a efetuar com a construção de edifícios, remodelação ou outras construções (n.º 1 aliena iv) da a), artigo 14º da Portaria do Empreender 2020) salientando os seus principais aspetos assim como com a aquisição de material circulante no âmbito de projeto integrados exclusivamente em atividades de animação turistica (n.º 1 aliena v) da a), artigo 14º da Portaria do Empreender 2020)."]
[null,null,null,"ATENÇÃO: Para as despesas com a construção de edifícios, o beneficiário deverá comprovar que efetuou uma consulta ao mercado a um mínimo de 3 fornecedores. Estes comprovativos deverão ser entregues com a candidatura."]
[null,null,null,"Fundamentação"]

{"sheet":"Inovação","index":2,"n_rows":141,"n_cols":14,"rows_kept":141,"cut":false,"hidden":false,"merged":[[149,3,149,13],[144,3,144,13],[145,3,145,13],[146,3,146,13],[147,3,147,13],[148,3,148,13],[136,3,136,13],[137,3,137,13],[138,3,138,13],[139,3,139,13],[140,3,140,13],[132,3,132,13],[105,3,105,13],[107,3,107,13],[109,4,109,13],[111,4,111,13],[113,4,113,13],[127,3,127,13],[130,3,130,13],[131,3,131,13],[129,3,129,13],[4,2,4,13],[7,2,7,5],[11,2,11,13],[14,2,14,13],[128,3,128,13],[21,3,21,12],[22,3,22,12],[84,3,84,13],[86,3,86,13],[87,3,87,13],[123,4,123,13]]}
[]
[]
[null,null,"BENEFICIÁRIO:"]
[]
[null,null,{"$f":"+CAPA!C9","v":0}]
[]
[null,null,"NIF:"]
[null,null,{"$f":"+CAPA!C12","v":0}]
[]
[null,null,"SISTEMA DE INCENTIVOS:"]
[]
[null,null,{"$f":"+CAPA!C16","v":"EMPREENDER 2020 - Primeira alteração "}]
[]
[]
[null,null,"INOVAÇÃO"]
[]
[null,null,"  "]
[]
[null,null,null,"Tipologia de inovação"]
[null,null,null," (nos termos do nº 3 do artigo 7º da Portaria do Empreender 2020)"]
[null,null,null,null,null,null,null,null,null,null,null,null,null,"inserir x"]
[null,null,null,"a) Inovação de produto/serviço - introdução de um novo ou significativamente melhorado produto ou serviço, incluindo alterações significativas nas suas especificações técnicas, componentes e materiais, software incorporado, facilidade de uso ou outras características funcionais;"]
[null,null,null,"b) Inovação de processo - implementação de um novo ou significativamente melhorado processo ou método de produção de bens e serviços, de logística e de distribuição."]
[]
[null,null,null,"Fundamentação do enquadramento do projeto na tipologia de inovação"]
[]
[]
[]
[]
[]
[]
[]
[]
[]
[]
[]
[]
[null,null,null,"Fatores de competência e motivações que determinaram a vontade de criar a empresa e qual a sua diferenciação"]
[]
[]
[]
[]
[]
[]
[]
[]
[]
[]
[null,null,null,"Grau de novidade / inovação do projeto no plano regional, nacional e internacional "]
[]
[]
[]
[]
[]
[]
[]
[]
[]
[]
[null,null,null,"Descrição técnica do investimento produtivo e das suas carateristicas inovadoras "]
[]
[]
[]
[]
[]
[]
[]
[]
[]
[]
[]
[]
[null,null,null,"Identificação de parcerias com entidades não empresariais do Sistema de I&I (investigação e inovação)"]
[]
[]
[]
[]
[]
[]
[]
[]
[]
[]
[null,null,null,"Descrição das atividades de Inovação "]
[null,null,null," - Descrever a estratégia de desenvolvimento da empresa e estabelecer uma correlação com os diferentes tipos de inovação, detalhando o grau de novidade, considerando os seguintes conceitos:"]
[]
[null,null,null,"     - Novo para o mercado regional: empresa introduz inovação no mercado da Região Autónoma da Madeira. "]
[null,null,null,"     - Novo para o mercado nacional e internacional: a empresa introduz inovação com o grau de novidade ao nível nacional ou internacional."]
[]
[]
[]
[]
[]
[]
[]
[]
[]
[]
[]
[]
[]
[]
[]
[null,null,null,"CONCEITOS A TER EM ATENÇÃO"]
[]
[null,null,null,"«Grau de novidade», em função do grau de novidade, existe: inovação para o mercado regional e inovação para o mercado nacional/internacional. As inovações são novas para o mercado regional quando a empresa é a primeira a introduzir a inovação no seu mercado. Uma inovação é nova para o mercado nacional/internacional, quando a empresa é a primeira a introduzir a inovação nesses mercados;"]
[]
[null,null,null,"«Tipologias de inovação»:"]
[]
[null,null,null,null,"i) «Inovação de produto/serviço», a introdução de um novo ou significativamente melhorado produto ou serviço, incluindo alterações significativas nas suas especificações técnicas, componentes e materiais, software incorporado, facilidade de uso ou outras características funcionais. O termo “produto” abrange tanto bens como serviços; "]
[]
[null,null,null,null,"ii) «Inovação de processo», a implementação de um novo ou significativamente melhorado processo ou método de produção de bens e serviços, de logística e de distribuição;"]
[]
[]
[]
[null,null,null,"Não se considera inovação:"]
[]
[null,null,null,null,"i) Pequenas alterações ou melhorias, aumentos de capacidade de produção similares a processos já existentes na empresa;"]
[]
[null,null,null,null,"ii) Investimentos de substituição ou decorrentes do encerramento de um processo produtivo;"]
[]
[null,null,null,null,"iii) Investimentos em processos resultantes de alterações de preços, customização e alterações cíclicas ou sazonais;"]
[]
[null,null,null,null,"iv) Investimentos para a comercialização de novos produtos ou significativamente melhorados e investimentos de inovação de processos associados a alterações estratégicas de gestão ou aquisições e fusões;"]
[]
[null,null,null,"Inovação de Produto "]
[]
[null,null,null,"Uma Inovação de Produto é a introdução de um bem ou serviço novo ou significativamente melhorado no que concerne às suas características ou usos previstos. Incluem-se neste tipo de inovação melhoramentos significativos em especificações técnicas, componentes e materiais, software incorporado, facilidade de uso ou outras características funcionais. "]
[null,null,null,"As inovações de produto podem utilizar novos conhecimentos ou tecnologias, ou podem basear-se em novos usos ou combinações de conhecimentos ou tecnologias existentes. O termo “produto” abrange tanto bens como serviços. As inovações de produto incluem a introdução de novos bens e serviços, e melhoramentos significativos nas características funcionais ou de uso dos bens e serviços existentes. "]
[null,null,null,"Melhoramentos significativos para produtos existentes podem ocorrer por meio de mudanças em materiais, componentes e outras características que aprimoram o seu desempenho. A introdução dos travões ABS, dos sistemas de navegação GPS (Global Positioning System), ou outras melhorias em subsistemas de automóveis são exemplos de inovações de produto baseadas em mudanças parciais ou na adição de um subsistema em vários subsistemas técnicos integrados. O uso de tecidos respiráveis em vestuário é um exemplo de uma inovação de produto que utiliza novos materiais, capazes de melhorar o desempenho do produto. "]
[null,null,null,"As inovações de produtos no setor de serviços podem incluir melhoramentos importantes no que diz respeito a como eles são oferecidos (por exemplo, em termos de eficiência ou de rapidez e qualidade), a adição de novas funções ou características em serviços existentes, ou a introdução de serviços inteiramente novos. São exemplos, as melhorias significativas em serviços via internet, tais como um grande aumento na velocidade e na facilidade de uso, ou a introdução de serviços que melhoram o acesso dos clientes. "]
[null,null,null,"A conceção é parte integrante do desenvolvimento e da implementação de inovações de produto. Todavia, mudanças na conceção que não implicam uma mudança significativa nas características funcionais do produto ou nos seus usos previstos não são inovações de produto. Ainda assim, elas podem ser inovações de marketing, como será abaixo referido. "]
[null,null,null,"Atualizações de rotina ou mudanças sazonais não configuram inovações de produto."]
[]
[null,null,null,"Inovação de Processo"]
[]
[null,null,null,"Uma Inovação de Processo é a implementação de um método de produção ou distribuição novo ou significativamente melhorado. Incluem-se neste tipo de inovação as mudanças significativas, as técnicas, de equipamentos e/ou de software. "]
[null,null,null,"As inovações de processo podem também visar reduzir custos de produção ou de distribuição, melhorar a qualidade, ou ainda produzir ou distribuir produtos novos ou significativamente melhorados. "]
[null,null,null,"Os métodos de produção envolvem as técnicas, equipamentos e software utilizado para produzir bens e serviços. São exemplos de novos métodos de produção a introdução de novos equipamentos de automação numa linha de produção e a implementação de design auxiliado por computador para o desenvolvimento de um produto. "]
[null,null,null,"Os métodos de distribuição dizem respeito à logística da empresa e seus equipamentos, software e técnicas para aprovisionamento (matérias primas e produtos acabados) e entrega do produto final. "]
[null,null,null,"As inovações de processo incluem métodos novos ou significativamente melhorados para a criação e o fornecimento de serviços. Elas podem envolver mudanças substanciais nos equipamentos e no software utilizado em empresas orientadas para os serviços ou nos procedimentos e nas técnicas que são utilizadas para os serviços de distribuição."]

{"sheet":"Postos Trabalho","index":3,"n_rows":71,"n_cols":29,"rows_kept":71,"cut":false,"hidden":false,"merged":[[31,14,31,15],[28,16,28,17],[32,9,34,21],[28,8,28,9],[28,10,28,11],[28,14,29,15],[30,14,30,15],[4,2,4,17],[7,2,7,3],[11,2,11,17],[20,8,20,9],[20,20,20,21],[20,18,20,19],[20,12,20,13],[20,14,20,15],[20,16,20,17],[20,22,20,23],[20,10,20,11],[26,3,26,28],[20,24,20,25],[20,26,20,27],[20,4,20,5],[20,3,21,3],[20,6,20,7],[64,3,65,25],[33,3,34,4],[33,5,34,6],[28,3,29,4],[28,5,28,6],[30,3,30,4],[31,3,31,4],[42,3,42,4],[39,10,40,11],[39,12,39,13],[39,3,40,4],[39,5,39,6],[41,3,41,4],[41,10,41,11],[32,3,32,4],[32,5,32,6]]}
[]
[]
[null,null,"BENEFICIÁRIO:"]
[]
[null,null,{"$f":"+Financiamento!C5","v":0}]
[]
[null,null,"NIF:"]
[null,null,{"$f":"+Financiamento!C8","v":0}]
[]
[null,null,"SISTEMA DE INCENTIVOS:"]
[]
[null,null,{"$f":"+Financiamento!C12","v":"EMPREENDER 2020 - Primeira alteração "}]
[]
[]
[null,null,"POSTOS DE TRABALHO"]
[]
[null,null,"  "]
[]
[null,null,null,"Postos de trabalho existentes no ano anterior à data da candidatura"]
[]
[null,null,null,"Postos de trabalho","Jan/n-1",null,"Fev/n-1",null,"Mar/n-1",null,"abr/n-1",null,"Maio/n-1",null,"Jun/n-1",null,"Jul/n-1",null,"Ago/n-1",null,"Set/n-1",null,"Out/n-1",null,"Nov/n-1",null,"Dez/n-1"]
[null,null,null,null,"H","M","H","M","H","M","H","M","H","M","H","M","H","M","H","M","H","M","H","M","H","M","H","M"]
[null,null,null,"Não qualificado",null,null,null,null,null,null,null,null,null,null,null,null,null,null,null,null,null,null,null,null,null,null,null,null,"(inserir)"]
[null,null,null,"Qualificado*",null,null,null,null,null,null,null,null,null,null,null,null,null,null,null,null,null,null,null,null,null,null,null,null,"(inserir)"]
[null,null,null,"* Nivel de qualificação igual ou superior ao Nível VI"]
[]
[null,null,null,"Nota: O beneficiário deverá escolher os meses do ano pré-candidatura (n-1) a preencher no quadro acima com o volume de postos de trabalho em cada mês, para efeitos de apuramento da «Criação líquida de postos de trabalho» conforme o definido na alínea e) do Anexo A da Portaria vigente."]
[]
[null,null,null,"Postos de trabalho",null,"Total"]
[null,null,null,null,null,"H","M"]
[null,null,null,"Não qualificado",null,{"$f":"E23+G23+I23+K23+M23+O23+Q23+S23+U23+W23+Y23+AA23","v":0},{"$f":"F23+H23+J23+L23+N23+P23+R23+T23+V23+X23+Z23+AB23","v":0}]
[null,null,null,"Qualificado",null,{"$f":"E24+G24+I24+K24+M24+O24+Q24+S24+U24+W24+Y24+AA24","v":0},{"$f":"F24+H24+J24+L24+N24+P24+R24+T24+V24+X24+Z24+AB24","v":0}]
[null,null,null,"Nº meses",null,null,null,"(inserir)",null,"Deverá inserir o número de meses selecionados para efeitos de cálculo da média mensal no ano pré-projeto, com o limite máximo de 12 meses."]
[null,null,null,"Média Postos de trabalho",null,{"$f":"(F31+G31+F32+G32)/F33","v":{"$error":"#DIV/0!"}}]
[]
[]
[]
[null,null,null,"Postos de trabalho a criar com o projeto"]
[]
[null,null,null,"Postos de trabalho",null,"Total",null,null,null,null,"Postos de trabalho",null,"Total"]
[null,null,null,null,null,"H","M",null,null,null,null,null,"H","M"]
[null,null,null,"Não qualificado",null,null,null,"(inserir)",null,null,"Jovem",null,null,null,"(inserir)"]
[null,null,null,"Qualificado",null,null,null,"(inserir)"]
[]
[]
[null,null,null,"Fundamentação "]
[null,null,null," - Se os meios humanos são adequados ao desenvolvimento do projeto."]
[null,null,null," - Qual a formação dos postos de trabalho e se a mesma é adequada ao desenvolvimento do projeto."]
[]
[]
[]
[]
[]
[]
[]
[]
[]
[]
[]
[]
[]
[]
[]
[null,null,null,"Nota:"]
[null,null,null,"«Criação líquida de postos de trabalho», o aumento líquido do número de trabalhadores diretamente empregados na empresa, calculado e validado pela diferença entre o número de postos de trabalho existentes no mês anterior à data de apresentação do pedido de pagamento final e a média mensal durante um determinado período de tempo nos meses pré-projeto, com o limite máximo de 12 meses."]
[]
[]
[null,null,null,"Nos termos da Portaria n.º 782/2009 de 23 de julho, os níveis de qualificação de emprego a considerar são:"]
[null,null,null,"• Nível 6 - Licenciatura\n"]
[null,null,null,"• Nível 7 - Mestrado"]
[null,null,null,"• Nível 8 - Doutoramento"]

{"sheet":"VENDAS EXTERIOR","index":4,"n_rows":76,"n_cols":12,"rows_kept":76,"cut":false,"hidden":false,"merged":[[58,3,60,3],[58,4,60,4],[58,5,58,7],[58,8,58,10],[59,5,60,5],[59,6,59,7],[59,8,60,8],[59,9,59,10],[20,6,20,7],[20,8,20,9],[4,2,4,11],[11,2,11,11],[7,2,7,3],[14,2,14,12],[20,3,21,3],[20,4,21,4],[20,5,21,5]]}
[]
[]
[null,null,"BENEFICIÁRIO:"]
[]
[null,null,{"$f":"+Financiamento!C5","v":0}]
[]
[null,null,"NIF:"]
[null,null,{"$f":"+Financiamento!C8","v":0}]
[]
[null,null,"SISTEMA DE INCENTIVOS:"]
[]
[null,null,{"$f":"+Financiamento!C12","v":"EMPREENDER 2020 - Primeira alteração "}]
[]
[]
[null,null,"ATIVIDADE ECONÓMICA / VENDAS AO EXTERIOR"]
[]
[null,null,"  "]
[]
[null,null,null,"Atividade económica por mercado"]
[]
[null,null,null,"Tipo","Bem/Serviço","Mercado (país)","Ano Pré Proj",null,"Ano Fim Proj +1"]
[null,null,null,null,null,null,"Quantidade","Valor","Quantidade","Valor"]
[null,null,null,null,null,null,null,null,null,null,null,"Compras"]
[null,null,null,null,null,null,null,null,null,null,null,"Vendas"]
[]
[]
[]
[]
[]
[]
[]
[]
[]
[]
[]
[null,null,null,"Fundamentação e caraterização da atividade económica por mercado "]
[null,null,null," - Qual o histórico da empresa em matéria de internacionalização?"]
[null,null,null," - Qual é a estratégia de internacionalização?"]
[null,null,null," - A presença internacional é concentrada em que mercados?"]
[null,null,null," - Justifique os mercados selecionados."]
[]
[]
[]
[]
[]
[]
[]
[]
[]
[]
[]
[]
[]
[]
[]
[]
[null,null,null,"Vendas ao Exterior Indiretas"]
[]
[null,null,null,"NIF","Designação do cliente Exportador","Ano Pré Proj",null,null,"Ano Fim Projeto + 1"]
[null,null,null,null,null,"Vendas do Beneficiário ao Cliente","Volume de Negócios do Cliente",null,"Vendas do Beneficiário ao Cliente","Volume de Negócios do Cliente"]
[null,null,null,null,null,null,"Internacional","Total",null,"Internacional","Total"]
[]
[]
[]
[]
[]
[]
[]
[]
[]
[]
[]
[]
[]
[]
[null,null,null,"Fundamentação e caraterização das Vendas ao Exterior Indiretas"]

{"sheet":"CRITERIOS_SELECAO_AUTOVAL","index":5,"n_rows":237,"n_cols":11,"rows_kept":237,"cut":false,"hidden":false,"merged":[[16,6,16,8],[75,7,75,9],[132,3,132,9],[145,7,145,9],[180,6,180,9],[41,3,41,9],[124,3,124,4],[79,3,79,9],[19,3,19,9],[40,3,40,9],[42,3,42,9],[3,2,3,10],[10,2,10,10],[184,3,185,7],[184,8,185,8],[161,3,161,9],[127,3,127,4],[149,3,149,9],[150,3,150,9],[162,3,162,9],[163,3,163,9],[148,3,148,9],[130,3,130,4],[18,3,18,9],[20,3,20,9],[6,2,6,5],[12,2,12,10],[224,3,224,9],[214,3,215,9],[184,9,185,9],[187,9,188,9],[187,3,188,7],[187,8,188,8],[205,3,205,4],[208,3,208,4],[201,3,202,9]]}
[]
[null,null,"BENEFICIÁRIO:"]
[]
[null,null,{"$f":"+CAPA!C9","v":0}]
[]
[null,null,"NIF:"]
[null,null,{"$f":"+CAPA!C12","v":0}]
[]
[null,null,"SISTEMA DE INCENTIVOS:"]
[]
[null,null,{"$f":"+CAPA!C16","v":"EMPREENDER 2020 - Primeira alteração "}]
[]
[null,null,"Critérios de Seleção – Autoavaliação do Beneficiário"]
[]
[null,null,"  "]
[]
[null,null,null,"CRITÉRIO DE SELEÇÃO A – QUALIDADE DO PROJETO",null,null,"A = 0,20A1 + 0,50A2 + 0,30A3"]
[null,null,null,"Fatores a Valorizar"]
[null,null,null,"A1 – Coerência e pertinência do projeto, valorizado pelo contributo para concretização da estratégia da empresa num quadro que potencie a dinamização de investimentos capazes de proporcionar a produção de novos produtos e serviços e dinamização de serviços integrados que contribuam para o desenvolvimento de novos negócios;"]
[null,null,null,"A2 – Grau de inovação do projeto empresarial proposto, o qual avalia a capacidade e o contributo do projeto para a introdução na economia regional de bens e serviços transacionáveis ou adoção de processos diferenciadores e de qualidade;"]
[null,null,null,"A3 – Capacidade empreendedora e de liderança do responsável pelo projeto - avalia o perfil empreendedor e competências de liderança, através da adequação dos currículos e o envolvimento dos beneficiários na concretização do projeto, classificado de acordo com a competência, dinamismo e visão estratégica dos sócios."]
[]
[null,null,null,"Fundamentação A1 "]
[null,null,null,"- Identificação clara da estratégia e dos objetivos estratégicos, nomeadamente quanto à coerência do plano de investimentos e natureza das vantagens competitivas da empresa."]
[]
[]
[]
[]
[]
[]
[]
[]
[]
[]
[]
[]
[]
[]
[]
[null,null,null,"Fundamentação A2"]
[null,null,null,"- Identificação, dentro das tipologias de inovação em que o seu projeto se enquadra, qual a sustentação, qual a perceção do mercado relativamente a essa inovação e qual a dimensão do seu impacto financeiro."]
[null,null,null,"- Identificação do “Grau de Novidade”, se a inovação proposta é ao nível do mercado regional, nacional ou internacional."]
[null,null,null,"- Este subcritério deverá contribuir para o alinhamento do projeto com as realizações e resultados do Programa Operacional."]
[]
[]
[]
[]
[]
[]
[]
[]
[]
[]
[]
[]
[]
[]
[]
[null,null,null,"Fundamentação A3"]
[null,null,null,"- Identificação das caraterísticas empreendedoras e de liderança do responsável  e participantes no projeto. "]
[]
[]
[]
[]
[]
[]
[]
[]
[]
[]
[]
[]
[]
[]
[]
[null,null,null,"CRITÉRIO DE SELEÇÃO B – IMPACTO DO PROJETO NA COMPETITIVIDADE DA EMPRESA ",null,null,null,"B = 0,40B1 + 0,20B2 + 0,40B3"]
[null,null,null,"Fatores a Valorizar"]
[null,null,null,"B1 - Produtividade económica esperada do projeto - avalia o peso do VAB na despesa elegível do projeto;"]
[null,null,null,"B2 – Capacidade de penetração no mercado internacional - avalia o impacto do projeto na orientação da empresa para os mercados externos, medido pela intensidade das exportações;"]
[null,null,null,"B3 - Sustentabilidade financeira do projeto - avalia a credibilidade da proposta face ao plano de negócios da empresa e a forma de financiamento do projeto [rácio de rentabilidade das vendas (IR), rácio de solvabilidade (IS) e financiamento do projeto (FP)]."]
[]
[null,null,null,"Fundamentação B1"]
[null,null,null,"- Identificação das perspetivas de crescimento da produtividade."]
[null,null,null,null,null,null,null,"VAB pós projeto",null,"(inserir)"]
[null,null,null,null,null,{"$f":"+IF(ISERROR(+(I84/I86*100)),\"\",(I84/I86*100))","v":""}]
[null,null,null,null,null,null,null,"Despesa Elegivel do projeto",null,"(inserir)"]
[]
[]
[]
[]
[]
[]
[]
[]
[]
[]
[]
[]
[]
[]
[]
[]
[]
[null,null,null,"Fundamentação B2"]
[null,null,null,"- Descrição da estratégia de internacionalização e principais mercados."]
[]
[null,null,null,null,null,{"$f":"+IF(ISERROR(+(I107/I109*100)),\"\",(I107/I109*100))","v":""},null,"VN1Intern=volume de negócios internacional no ano pós-projeto",null,"(inserir)"]
[]
[null,null,null,null,null,null,null,"VN1total=volume de negócios total no ano pós-projeto",null,"(inserir)"]
[]
[]
[]
[]
[]
[]
[]
[]
[]
[]
[]
[]
[null,null,null,"Fundamentação B3"]
[null,null,null,"- Avaliação da viabilidade económica e financeira do projeto."]
[null,null,null,"- Apresentar os valores apurados para este subcritério: ",null,null,null,"Resultado líquido pós-projeto",null,"(inserir)"]
[null,null,null,"IRpós-projeto = (Resultado líquido / Volume negócios) x 100 ",null,{"$f":"+IF(ISERROR(+(I124/I125*100)),\"\",(I124/I125*100))","v":""},null,"Volume negócios pós-projeto",null,"(inserir)"]
[]
[null,null,null,null,null,null,null,"Capital próprio pós-projeto",null,"(inserir)"]
[null,null,null,"ISpós-projeto = (Capital próprio / Total do passivo) x 100 ",null,{"$f":"+IF(ISERROR(+(I127/I128*100)),\"\",(I127/I128*100))","v":""},null," Total do passivo pós-projeto",null,"(inserir)"]
[]
[null,null,null,null,null,null,null,"Capitais próprios do projeto",null,"(inserir)"]
[null,null,null,"FP = (Capitais próprios do projeto / Despesas elegiveis do projeto) x 100",null,{"$f":"+IF(ISERROR(+(I130/I131*100)),\"\",(I130/I131*100))","v":""},null,"Total das despesas elegiveis do projeto",null,"(inserir)"]
[]
[null,null,null,"- Enquadramento em termos financeiros do projeto no plano de negócios da empresa, rácios de rentabilidade do projeto e rácios financeiros da empresa, recursos financeiros no financiamento do projeto, onde serão privilegiados os projetos com menor recurso a endividamento, ou seja, com maior percentagem de capitais próprios."]
[]
[]
[]
[]
[]
[]
[]
[]
[]
[]
[]
[]
[null,null,null,"CRITÉRIO DE SELEÇÃO C – CONTRIBUTO DO PROJETO PARA A COMPETITIVIDADE REGIONAL",null,null,null,"C = 0,40C1 + 0,60C2"]
[null,null,null,"Fatores a Valorizar",null,null,null,null,null,null,"inserir x"]
[null,null,null,"C1 – Contributo do projeto para a estratégia regional:"]
[null,null,null,"- Criação de novas dinâmicas de iniciativa empresarial na RAM no domínio do Capital Humano, com elevada capacidade para a criação de emprego sustentado (≥3), para atenuar as assimetrias territoriais de desenvolvimento e desequilíbrio no mercado de trabalho;"]
[null,null,null,"- Reforço das iniciativas de deteção, estímulo e apoio à concretização de novas empresas e novos negócios inovadores com forte capacidade de internacionalização, presença efetiva nos mercados externos, contribuindo para o aumento da notoriedade internacional da RAM;"]
[null,null,null," - Diversificação da base produtiva regional alinhada com a Estratégia de Especialização Inteligente (RIS3 Regional) nomeadamente com os objetivos dos seus domínios temáticos:"]
[null,null,null,null,null,null,"inserir x"]
[null,null,null,null," - Saúde e bem-estar;"]
[null,null,null,null," - Qualidade agroalimentar;"]
[null,null,null,null," - Sustentabilidade, gestão e manutenção de infraestruturas;"]
[null,null,null,null," - Bio-sustentabilidade;"]
[null,null,null,null," - Energia, mobilidade e alterações climáticas;"]
[null,null,null,null," - Tecnologias de informação e comunicação;"]
[null,null,null,null," - Turismo;"]
[null,null,null,null," - Recursos e Tecnologias do Mar."]
[]
[null,null,null," -  Os modelos de negócio inovadores, nomeadamente os que promovam o desenvolvimento de produtos turísticos estratégicos ou novos destinos turísticos, recursos do mar e economia azul ou que incidam na valorização do património, natural e cultural, na valorização ambiental e na eficiência energética;"]
[null,null,null," - Contributo complementar do projeto para o indicador de resultado do Programa Operacional Madeira 14-20, quando o mesmo se insere em setores de alta e média-alta tecnologia e em serviços intensivos em conhecimento, identificados no anexo E do presente regulamento;"]
[null,null,null," -  Projetos de investimento realizados ao abrigo do projeto «Brava Valley», que contribuam para a constituição de um ecossistema empresarial de base tecnológica no município da Ribeira Brava"]
[]
[null,null,null,"C2 – Criação de emprego qualificado e criação de emprego jovem – avalia os projetos que contribuam para a criação de emprego jovem e qualificado. "]
[]
[null,null,null,"Fundamentação C1"]
[null,null,null,"- Identificação e justificação dos fatores de valoração selecionados. "]
[null,null,null,"- Justificar, de forma inequívoca, o alinhamento dos projetos com a RIS3 Regional, quando aplicável."]
[]
[]
[]
[]
[]
[]
[]
[]
[]
[]
[null,null,null,"Fundamentação C2",null,null,"C2 = 0,40CEQ + 0,60CEJ"]
[]
[null,null,null,"- Identificar o nº de postos de trabalho a criar, sua qualificação e se o mesmo é jovem ou não."]
[]
[null,null,null,"CEQ = Criação de emprego qualificado: criação de emprego com nível de qualificação igual ou superior ao nível VI, apurada pelo número de postos de trabalho criados e mantidos pelo prazo de 3 anos a contar da data da conclusão do projeto",null,null,null,null,null,"(inserir)"]
[]
[]
[null,null,null,"CEJ = Criação de emprego jovem: contratação de trabalhadores com idade entre 18 e 35 anos e mantidos pelo prazo de 3 anos a contar da data da conclusão do projeto.",null,null,null,null,null,"(inserir)"]
[]
[]
[]
[]
[]
[]
[]
[]
[]
[]
[]
[]
[]
[null,null,null,"Identificação dos resultados a alcançar: prosseguindo a orientação para resultados, são objeto de contratualização e monitorização os seguintes Indicadores:"]
[]
[]
[]
[null,null,null,"·      I1 - Valor acrescentado bruto (VAB)",null,{"$f":"+I84","v":0}]
[]
[]
[null,null,null,"·      I2 - Criação de emprego qualificado (CEQ)",null,{"$f":"+I185","v":0}]
[]
[]
[]
[null,null,null,"Notas:"]
[null,null,null,"Subcritério A2:"]
[null,null,null,"• Novo para o mercado regional: empresa introduz inovação no mercado da Região Autónoma da Madeira.                                                                                                                                                          • Novo para o mercado nacional e internacional: a empresa introduz inovação com o grau de novidade ao nível nacional ou internacional.\n• Uma pontuação nula neste subcritério implica o não enquadramento do projeto no âmbito do \"Empreender 2020\", conforme estipulado no número 4 do artigo 7º do presente Regulamento.\n"]
[]
[]
[null,null,null,"Subcritério B1"]
[null,null,null,"VAB = VBP - Consumos Intermédios "]
[null,null,null,"VBP = Volume de Negócios + Variação nos inventários da produção + Trabalhos para a própria empresa + Rendimentos Suplementares + Subsídios à Exploração "]
[null,null,null,"Volume de Negócios = Vendas + Prestação de serviços "]
[null,null,null,"Consumos Intermédios = Custo das Mercadorias + Custo das Matérias-Primas e Subsidiárias Consumidas + Fornecimentos e Serviços Externos + Impostos Indiretos"]
[]
[null,null,null,"Subcritério B2"]
[null,null,null," - VN1 Intern =  Volume de negócios internacional no ano pós-projeto: vendas e prestação de serviços ao exterior, devidamente relevados na contabilidade da empresa, refletidos na Informação Empresarial Simplificada (IES) e sustentados em indicadores que demonstrem as perspetivas de internacionalização do mercado, evolução estratégica da empresa e coerência com as ações previstas na candidatura.\nO conceito de volume negócios internacional inclui a prestação de serviços a não residentes e as vendas indiretas ao exterior. Se a prestação de serviços a não residentes não estiver evidenciada na IES, a sua comprovação pode ser efetuada por declaração de ROC ou TOC que certifique o registo contabilístico exigido, ou seja, espelhando a desagregação por contas de prestações de serviços a não residentes;   - Prestação de serviços a não residentes = inclui alojamento, restauração e outras;\n - Vendas indiretas ao exterior = vendas a clientes no mercado regional quando, posteriormente, estas são incorporadas em outros bens objeto de venda ao exterior e/ou revendidas para o mercado externo. Devem ser claramente identificados os diferentes intervenientes na cadeia de vendas (clientes exportadores);\n - VN1 total = Volume de negócios total no ano pós-projeto."]
[]
[null,null,null,"Subcritério C1"]
[null,null,null,"Um projeto estará alinhado com a RIS3 Regional, se para além de estar enquadrado com, pelo menos, um domínio temático, cumpra no mínimo duas das seguintes condições:"]
[null,null,null,"·         Estar alinhado com, pelo menos, uma das linhas de ação desse domínio;"]
[null,null,null,"·         Contribuir de forma clara e diferenciadora para a economia regional e/ou para o ecossistema regional de inovação;"]
[null,null,null,"·         Produzir efeitos de arrastamento nas cadeias de valor/efeitos de disseminação na região."]
[]
[null,null,null,"Subcritério C2"]
[null,null,null,"Nos termos da Portaria n.º 782/2009 de 23 de julho, os níveis de qualificação de emprego a considerar no presente  subcritério são:"]
[null,null,null,"• Nível 6 - Licenciatura\n"]
[null,null,null,"• Nível 7 - Mestrado"]
[null,null,null,"• Nível 8 - Doutoramento"]

{"sheet":"taxa base_majorações","index":6,"n_rows":57,"n_cols":9,"rows_kept":57,"cut":false,"hidden":false,"merged":[[56,3,57,10],[22,3,22,6],[24,3,24,6],[53,3,53,10],[54,3,54,10],[51,3,52,10],[20,3,20,6],[3,2,3,11],[6,2,6,5],[10,2,10,11],[12,2,12,11],[18,3,18,6],[19,3,19,9]]}
[]
[null,null,"BENEFICIÁRIO:"]
[]
[null,null,{"$f":"+CAPA!C9","v":0}]
[]
[null,null,"NIF:"]
[null,null,{"$f":"+CAPA!C12","v":0}]
[]
[null,null,"SISTEMA DE INCENTIVOS:"]
[]
[null,null,{"$f":"+CAPA!C16","v":"EMPREENDER 2020 - Primeira alteração "}]
[]
[null,null,"Taxas e Majorações"]
[]
[]
[]
[null,null,null,"1. Taxa base de 40%"]
[null,null,null,"Majorações:",null,null,null,null,"inserir x"]
[null,null,null,"a) 10%, para projetos que resultem de «empreendedorismo jovem»"]
[]
[null,null,null,"b) 5%, para criação líquida de 1 posto de trabalho qualificado "]
[]
[null,null,null,"c) 10%, para criação líquida de 2 postos de trabalho qualificados "]
[]
[null,null,null,"d) 15%, para criação líquida de 3 ou mais postos de trabalho qualificados "]
[]
[null,null,null,"Fundamentação"]
[]
[]
[]
[]
[]
[]
[]
[]
[]
[]
[]
[]
[]
[]
[]
[]
[]
[]
[]
[]
[]
[]
[null,null,null,"Notas:"]
[null,null,null,"Para efeitos das majorações, deverá ser tido em conta o seguinte:"]
[null,null,null,"«Empreendedorismo jovem», projeto onde o sócio jovem ou conjunto de sócios jovens participantes, tenham idade compreendida entre os 18 e os 35 anos, e no conjunto cumpram uma das seguintes condições:"]
[]
[null,null,null,"   i) Deter, direta ou indiretamente, uma participação no capital social igual ou superior a 50% e manter essa participação durante pelo menos dois anos após a data da conclusão do projeto;"]
[null,null,null,"   ii) Desempenhar funções executivas na empresa e mantê-las durante pelo menos dois anos após a data da conclusão do projeto."]
[]
[null,null,null,"«Criação líquida de postos de trabalho», o aumento líquido do número de trabalhadores diretamente empregados na empresa, calculado e validado pela diferença entre o número de postos de trabalho existentes no mês anterior à data de apresentação do pedido de pagamento final e a média mensal durante um determinado período de tempo nos meses pré-projeto, com o limite máximo de 12 meses;"]

{"sheet":"Financiamento","index":7,"n_rows":108,"n_cols":29,"rows_kept":108,"cut":false,"hidden":false,"merged":[[59,23,59,27],[56,13,56,21],[60,23,60,27],[57,14,57,20],[61,23,61,27],[23,3,23,8],[23,9,23,11],[23,12,23,14],[23,15,23,18],[23,19,23,23],[23,24,23,28],[25,3,25,8],[25,9,25,11],[25,12,25,14],[25,15,25,18],[25,19,25,23],[25,24,25,28],[24,3,24,8],[24,9,24,11],[24,12,24,14],[24,15,24,18],[24,19,24,23],[24,24,24,28],[26,9,26,11],[99,4,99,28],[100,4,100,28],[102,4,102,28],[101,4,101,28],[103,4,103,28],[104,4,104,28],[95,3,95,27],[96,3,96,27],[107,3,107,27],[4,2,4,17],[7,2,7,5],[11,2,11,17],[22,3,22,8],[22,9,22,11],[22,12,22,14],[22,15,22,18],[20,3,20,28],[21,3,21,8],[21,9,21,11],[21,12,21,14],[21,15,21,18],[21,19,21,23],[21,24,21,28],[14,2,14,29],[19,3,19,8],[19,9,19,11],[19,12,19,14],[19,15,19,18],[19,19,19,23],[19,24,19,28],[22,19,22,23],[22,24,22,28],[26,12,26,14],[26,15,26,18],[26,19,26,23],[26,24,26,28],[27,3,27,8],[27,9,27,11],[27,12,27,14],[29,3,29,8],[29,9,29,11],[29,12,29,14],[29,15,29,18],[29,19,29,23],[29,24,29,28],[27,15,27,18],[27,19,27,23],[27,24,27,28],[28,3,28,28],[26,3,26,8],[30,3,30,8],[30,9,30,11],[30,12,30,14],[30,15,30,18],[30,19,30,23],[30,24,30,28],[32,24,32,28],[33,3,33,8],[33,9,33,11],[33,12,33,14],[33,15,33,18],[33,19,33,23],[33,24,33,28],[31,9,31,11],[31,12,31,14],[31,15,31,18],[31,19,31,23],[31,24,31,28],[32,3,32,8],[32,9,32,11],[32,12,32,14],[32,15,32,18],[32,19,32,23],[35,3,35,8],[35,9,35,11],[35,12,35,14],[35,15,35,18],[35,19,35,23],[35,24,35,28],[34,3,34,8],[34,9,34,11],[34,12,34,14],[34,15,34,18],[34,19,34,23],[34,24,34,28],[37,3,37,8],[37,9,37,11],[37,12,37,14],[37,15,37,18],[37,19,37,23],[37,24,37,28],[36,3,36,8],[36,9,36,11],[36,12,36,14],[36,15,36,18],[36,19,36,23],[36,24,36,28],[39,3,39,8],[39,9,39,11],[39,12,39,14],[39,15,39,18],[39,19,39,23],[39,24,39,28],[38,3,38,8],[38,9,38,11],[38,12,38,14],[38,15,38,18],[38,19,38,23],[38,24,38,28],[40,3,40,8],[40,9,40,11],[40,12,40,14],[40,15,40,18],[40,19,40,23],[40,24,40,28],[47,3,47,8],[47,13,47,24],[42,3,42,28],[90,4,90,28],[91,4,91,28],[86,3,86,27],[87,3,87,27],[88,3,88,27],[92,4,92,28],[49,21,49,23],[50,21,50,23],[53,3,53,10],[53,13,53,21],[57,23,57,27],[67,26,67,27],[54,3,54,5],[54,7,54,10],[54,13,54,21],[55,3,55,5],[55,7,55,10],[55,14,55,20],[55,23,55,27],[62,23,62,27],[63,23,63,27],[64,23,64,27],[56,23,56,27],[58,23,58,27]]}
[]
[]
[null,null,"BENEFICIÁRIO:"]
[]
[null,null,{"$f":"+CAPA!C9","v":0}]
[]
[null,null,"NIF:"]
[null,null,{"$f":"+CAPA!C12","v":0}]
[]
[null,null,"SISTEMA DE INCENTIVOS:"]
[]
[null,null,{"$f":"+CAPA!C16","v":"EMPREENDER 2020 - Primeira alteração "}]
[]
[]
[null,null,"FINANCIAMENTO DO PROJECTO"]
[]
[]
[null,null,null," Estrutura de Financiamento (Recursos Financeiros)    "]
[]
[null,null,null,"Fontes",null,null,null,null,null,"n",null,null,"n+1",null,null,"n+2",null,null,null,"Total",null,null,null,null,"% Investimento"]
[null,null,null,"1. Capitais Próprios (1)"]
[null,null,null,"Capital",null,null,null,null,null,null,null,null,null,null,null,null,null,null,null,{"$f":"SUM(J22:S22)","v":0},null,null,null,null,{"$f":"IF(ISERROR(T22/$T$41),\"0%\",T22/$T$41)","v":"0%"}]
[null,null,null,"Prestações Suplementares de Capital",null,null,null,null,null,null,null,null,null,null,null,null,null,null,null,0,null,null,null,null,"0%"]
[null,null,null,"Suprimentos Consolidados (2)",null,null,null,null,null,null,null,null,null,null,null,null,null,null,null,0,null,null,null,null,"0%"]
[null,null,null,"Sub-Total 1",null,null,null,null,null,{"$f":"+J24+J23+J22","v":0},null,null,{"$f":"+M24+M23+M22","v":0},null,null,{"$f":"+P24+P23+P22","v":0},null,null,null,0,null,null,null,null,"0%"]
[null,null,null,"2. Autofinanciamento (3)",null,null,null,null,null,null,null,null,null,null,null,null,null,null,null,0,null,null,null,null,"0%"]
[null,null,null,"3. Outros (4)",null,null,null,null,null,null,null,null,null,null,null,null,null,null,null,0,null,null,null,null,"0%"]
[null,null,null,"Sub-Total 2",null,null,null,null,null,{"$f":"+J26+J27","v":0},null,null,{"$f":"+M26+M27","v":0},null,null,{"$f":"+P26+P27","v":0},null,null,null,0,null,null,null,null,"0%"]
[null,null,null,"4. Capitais Alheios"]
[null,null,null,"Dívidas a Instituições de Crédito",null,null,null,null,null,null,null,null,null,null,null,null,null,null,null,{"$f":"SUM(J30:S30)","v":0},null,null,null,null,{"$f":"IF(ISERROR(T30/$T$41),\"0%\",T30/$T$41)","v":"0%"}]
[null,null,null,"Empréstimos Obrigacionistas",null,null,null,null,null,null,null,null,null,null,null,null,null,null,null,0,null,null,null,null,"0%"]
[null,null,null,"Outras dívidas a Sócios / accionistas",null,null,null,null,null,null,null,null,null,null,null,null,null,null,null,0,null,null,null,null,"0%"]
[null,null,null,"Fornecedores Imobilizado",null,null,null,null,null,null,null,null,null,null,null,null,null,null,null,0,null,null,null,null,"0%"]
[null,null,null,"Locação Financeira",null,null,null,null,null,null,null,null,null,null,null,null,null,null,null,0,null,null,null,null,"0%"]
[null,null,null,"Outros",null,null,null,null,null,null,null,null,null,null,null,null,null,null,null,0,null,null,null,null,"0%"]
[null,null,null,"Sub-Total 3",null,null,null,null,null,{"$f":"+J35+J34+J33+J32+J31+J30","v":0},null,null,{"$f":"+M35+M34+M33+M32+M31+M30","v":0},null,null,{"$f":"+P35+P34+P33+P32+P31+P30","v":0},null,null,null,{"$f":"+J36+M36+P36","v":0},null,null,null,null,"0%"]
[null,null,null,"Incentivo Não Reembolsável (INR)",null,null,null,null,null,null,null,null,null,null,null,null,null,null,null,{"$f":"SUM(J37:S37)","v":0},null,null,null,null,"0%"]
[null,null,null,"Incentivo Reembolsável (IR)",null,null,null,null,null,null,null,null,null,null,null,null,null,null,null,{"$f":"SUM(J38:S38)","v":0},null,null,null,null,"0%"]
[null,null,null,"Sub-Total 4",null,null,null,null,null,{"$f":"+J37+J38","v":0},null,null,{"$f":"+M37+M38","v":0},null,null,{"$f":"+P37+P38","v":0},null,null,null,{"$f":"+M39+P39+J39","v":0},null,null,null,null,"0%"]
[null,null,null,"FINANCIAMENTO TOTAL",null,null,null,null,null,{"$f":"+J39+J36+J25","v":0},null,null,{"$f":"+M39+M36+M25","v":0},null,null,{"$f":"+P39+P36+P25","v":0},null,null,null,{"$f":"+P40+M40+J40","v":0},null,null,null,null,"0%"]
[null,null,null,"INVESTIMENTO TOTAL (5)",null,null,null,null,null,null,null,null,null,null,null,null,null,null,null,{"$f":"+J41+M41+P41","v":0}]
[null,null,null,"(1) Novos capitais próprios"]
[null,null,null,"(2) Novos suprimentos a incorporar em capital próprio até ao encerramento do projecto, para efeitos de cumprimento da condição de elegibilidade do projeto e do Subcritério B3 (FP)"]
[null,null,null,"(3) Resultado líquido do exercício + imparidades + provisões + gastos/reversões de depreciação e amortização, do ano pré-projecto"]
[null,null,null,"(4) Reafectação de valores do activo sem reflexo no autofinanciamento"]
[null,null,null,"(5) Investimento total de preencimento obrigatório"]
[]
[null,null,null,"Financiamento Bancário Assegurado",null,null,null,null,null,null,null,null,null,"Modalidades de Intervenção da Instituição de Crédito"]
[null,null,null,null,null,null,null,null,null,null,null,null,null,"Pedido de Financiamento à Instituição de Crédito:"]
[null,null,null,null,"Sim",null,null,"Não",null,null,null,null,null,"Crédito Bancário",null,null,null,null,null,"Montante:"]
[null,null,null,null,null,null,null,null,null,null,null,null,null,"Locação Financeira",null,null,null,null,null,"Montante:"]
[null,null,null,null,null,null,null,null,null,null,null,null,null,"Prestação de Garantia Bancária"]
[]
[null,null,null,"Outras Formas Financiamento",null,null,null,null,null,null,null,null,null,"Fontes de financiamento"]
[null,null,null,"Garantia Mútua",null,null,null,"                 Outra",null,null,null,null,null,"Mérito Projeto - B3 - (CPp/DEp) ≥ 10%"]
[null,null,null,"Capital Risco",null,null,null,null,null,null,null,null,null,null,{"$f":"IF(ISERROR(+X57/X59),\"\",X57/X59)","v":""},null,null,null,null,null,null,null,null,"Capital Próprio Projeto - CPp"]
[null,null,null,null,null,null,null,null,null,null,null,null,null,"Condição Acesso - (RpFe) / DEp ≥ 25%",null,null,null,null,null,null,null,null,null,{"$f":"+T25","v":0}]
[null,null,null,null,null,null,null,null,null,null,null,null,null,null,{"$f":"IF(ISERROR(+(X65)/X59),\"\",(X65)/X59)","v":""},null,null,null,null,null,null,null,null,"Despesa elegível projeto - Dep"]
[null,null,null,null,null,null,null,null,null,null,null,null,null,null,null,null,null,null,null,null,null,null,null,null,null,null,null,null,"(inserir)"]
[null,null,null,null,null,null,null,null,null,null,null,null,null,null,null,null,null,null,null,null,null,null,null,"Capital próprio empresa - Cpe"]
[null,null,null,null,null,null,null,null,null,null,null,null,null,null,null,null,null,null,null,null,null,null,null,null,null,null,null,null,"(inserir)"]
[null,null,null,null,null,null,null,null,null,null,null,null,null,null,null,null,null,null,null,null,null,null,null,"Ativo total da empresa - AT"]
[null,null,null,null,null,null,null,null,null,null,null,null,null,null,null,null,null,null,null,null,null,null,null,null,null,null,null,null,"(inserir)"]
[null,null,null,null,null,null,null,null,null,null,null,null,null,null,null,null,null,null,null,null,null,null,null,"Recursos próprios da empresa ou financiamento externo que não incluam qualquer financiamento estatal - RpFe"]
[null,null,null,null,null,null,null,null,null,null,null,null,null,null,null,null,null,null,null,null,null,null,null,null,null,null,null,null,"(inserir)"]
[]
[null,null,null,null,null,null,null,null,null,null,null,null,null,null,"Nota: Atenção que  para efeitos do subcritério B3 apenas é considerado CPp/Dep."]
[null,null,null,null,null,null,null,null,null,null,null,null,null,null,null,null,null,null,null,null,null,null,null,null,null,null,{"$f":"+O56","v":""}]
[null,null,null,"Demonstração das Fontes de Financiamento"]
[]
[]
[]
[]
[]
[]
[]
[]
[]
[]
[]
[]
[]
[]
[null,null,null,"Descrição das Fontes de Financiamento: "]
[null,null,null,"O beneficiário deverá justificar os valores e fontes indicadas na tabela, através de uma breve descrição."]
[]
[null,null,null,"Pretende-se, no quadro de Estrutura de Financiamento (Recursos Financeiros) do projeto, a indicação dos meios de financiamento do investimento nos anos da sua execução. "]
[null,null,null,"O financiamento total e anual deve ser coincidente com o correspondente investimento total e anual, inserido no quadro dos investimentos. "]
[null,null,null,"O beneficiário tem de evidenciar que as fontes de financiamento estão asseguradas, devendo os correspondentes documentos comprovativos constar do Dossier de Projeto: "]
[null,null,null,"Capitais Próprios "]
[null,null,null,null,"Capital - indicação de qual o aumento de capital que, eventualmente, irá financiar o investimento. "]
[null,null,null,null,"Prestações Suplementares de Capital - indicação de qual o aumento de prestações suplementares que, eventualmente, irá financiar o investimento. "]
[null,null,null,null,"Suprimentos -  Novos suprimentos a incorporar em capital próprio até ao encerramento do projecto, para efeitos de cumprimento da condição de elegibilidade do projeto e do Subcritério B3 (FP)."]
[]
[null,null,null,"Autofinanciamento "]
[null,null,null,"Poderá ser utilizado em cada ano de execução do investimento, um valor de autofinanciamento, que tenha como limite os meios libertos líquidos\n (Resultados Líquidos do Período + Gastos/Reversões de Depreciação e de Amortização + Imparidades + Provisões + Aumentos/reduções de justo valor)."]
[null,null,null,"Outros, poderão ser utilizadas outras forma de financiamento"]
[]
[null,null,null,"Capitais Alheios: "]
[null,null,null,null,"Dividas Instituições de Crédito - indicação de qual o valor de empréstimos bancários que, eventualmente, irá financiar o investimento. Na fase de candidatura, deverá entregar o documento comprovativo da aprovação do financiamento bancário ou de intenção de financiamento. "]
[null,null,null,null,"Empréstimos por Obrigações - Indicação de qual o valor de empréstimos obrigacionistas que, eventualmente, irá financiar o investimento. Na fase de candidatura, deverá dispor no Dossier do Projeto, da cópia da ata deliberativa da realização do empréstimo obrigacionista, incluindo as respetivas condições, nomeadamente, o montante, a taxa de juro, o valor nominal, o preço de emissão, o valor de reembolso e o método de amortização das obrigações. "]
[null,null,null,null,"Dívidas a Sócios/Acionistas - Indicação de qual o valor de outras eventuais dívidas a sócios/acionistas, que irão financiar o investimento. "]
[null,null,null,null,"Fornecedores imobilizado - indicação de qual o valor de fornecedores de imobilizado que, eventualmente, irá financiar o investimento. A maturidade do crédito concedido por Fornecedores de Imobilizado terá de ser igual ao prazo de execução do investimento. Na fase de candidatura, o documento comprovativo do acordo com o fornecedor de imobilizado, deverá integrar o Dossier de Projeto. "]
[null,null,null,null,"Locação Financeira – referência ao valor de locação financeira que, eventualmente, irá financiar o investimento. O beneficiário deve comprometer-se a concretizar a opção de compra do bem locado, no final do contrato de locação financeira. "]
[null,null,null,null,"Outros - Indicação de qual o valor de outras eventuais outras fontes, que irão financiar o investimento. "]
[]
[null,null,null,"Incentivos: "]
[null,null,null,"O beneficiário deverá indicar o montante de incentivo reembolsável e não reembolsável que previsivelmente lhe venha a ser atribuído de acordo com as taxas e regras constantes do Regulamento. "]

{"sheet":"Balanço empresa ","index":8,"n_rows":84,"n_cols":18,"rows_kept":84,"cut":false,"hidden":false,"merged":[[10,2,10,17],[6,2,6,5],[3,2,3,17],[16,3,16,4],[16,16,16,17],[12,2,12,18],[14,2,14,7],[14,8,14,10],[13,8,13,10],[17,3,17,13],[17,14,17,15],[18,3,18,13],[18,14,18,15],[19,3,19,13],[19,14,19,15],[20,3,20,13],[20,14,20,15],[21,3,21,13],[21,14,21,15],[22,3,22,13],[22,14,22,15],[27,14,27,15],[26,3,26,13],[26,14,26,15],[27,3,27,13],[23,3,23,13],[23,14,23,15],[24,3,24,13],[24,14,24,15],[25,3,25,13],[25,14,25,15],[28,3,28,13],[28,14,28,15],[30,14,30,15],[31,14,31,15],[32,14,32,15],[30,3,30,13],[33,14,33,15],[34,14,34,15],[38,14,38,15],[35,14,35,15],[36,14,36,15],[37,14,37,15],[39,14,39,15],[41,14,41,15],[42,14,42,15],[43,14,43,15],[44,14,44,15],[40,14,40,15],[46,3,46,13],[46,14,46,15],[58,14,58,15],[47,14,47,15],[48,14,48,15],[49,14,49,15],[50,14,50,15],[51,14,51,15],[52,14,52,15],[53,14,53,15],[54,14,54,15],[55,14,55,15],[56,14,56,15],[57,14,57,15],[70,14,70,15],[71,14,71,15],[59,14,59,15],[60,14,60,15],[62,14,62,15],[63,14,63,15],[64,14,64,15],[65,14,65,15],[66,14,66,15],[67,14,67,15],[68,14,68,15],[69,14,69,15],[81,14,81,15],[82,14,82,15],[83,14,83,15],[72,14,72,15],[73,14,73,15],[74,14,74,15],[75,14,75,15],[76,14,76,15],[77,14,77,15],[78,14,78,15],[79,14,79,15],[80,14,80,15]]}
[]
[null,null,"BENEFICIÁRIO:"]
[]
[null,null,{"$f":"+CAPA!C9","v":0}]
[]
[null,null,"NIF:"]
[null,null,{"$f":"+CAPA!C12","v":0}]
[]
[null,null,"SISTEMA DE INCENTIVOS:"]
[]
[null,null,{"$f":"+CAPA!C16","v":"EMPREENDER 2020 - Primeira alteração "}]
[]
[null,null,"BALANÇO DA EMPRESA Pré candidatura"]
[null,null,null,null,null,null,null,null,"(inserir data)"]
[null,null,"Data da candidatura:"]
[]
[null,null,null,"(euros)",null,null,null,null,null,null,null,null,null,null,null,null,"EMPRESA PRÉ CANDIDATURA"]
[null,null,null,"ACTIVO",null,null,null,null,null,null,null,null,null,null,"Notas",null,{"$f":"IF(YEAR($I$15)=\"\",\"\",YEAR($I$15)-2)","v":1898},{"$f":"IF(YEAR($I$15)=\"\",\"\",YEAR($I$15)-1)","v":1899}]
[null,null,null,"Activo não corrente"]
[null,null,null,"activos fixos tangíveis"]
[null,null,null,"Propriedades de investimento"]
[null,null,null,"Goodwill"]
[null,null,null,"Activos Intangíveis"]
[null,null,null,"Activos biológicos"]
[null,null,null,"Participações financeiras - método da equivalência patrimonial"]
[null,null,null,"Participações financeiras - outros métodos"]
[null,null,null,"Accionistas/sócios"]
[null,null,null,"Outros activos financeiros"]
[null,null,null,"Activos por impostos diferidos"]
[null,null,null,null,null,null,null,null,null,null,null,null,null,null,null,null,{"$f":"+Q19+Q20+Q21+Q22+Q23+Q24+Q25+Q26+Q27+Q28+Q29","v":0},{"$f":"+R19+R20+R21+R22+R23+R24+R25+R26+R27+R28+R29","v":0}]
[null,null,null,"Activo corrente"]
[null,null,null,"Inventários "]
[null,null,null,"Activos biológicos"]
[null,null,null,"Clientes"]
[null,null,null,"Adiantamentos a fornecedores"]
[null,null,null,"Estado e outros entes públicos"]
[null,null,null,"Accionistas/sócios"]
[null,null,null,"Outras contas a receber"]
[null,null,null,"Diferimentos"]
[null,null,null,"Activos financeiros detidos para negociação"]
[null,null,null,"Outros activos financeiros"]
[null,null,null,"Activos não correntes detidos para venda"]
[null,null,null,"Caixa e depósitos bancários"]
[null,null,null,null,null,null,null,null,null,null,null,null,null,null,null,null,{"$f":"+Q31+Q32+Q33+Q34+Q35+Q36+Q37+Q38+Q39+Q40+Q41+Q42+Q43","v":0},{"$f":"+R31+R32+R33+R34+R35+R36+R37+R38+R39+R40+R41+R42+R43","v":0}]
[null,null,null,"TOTAL DO ACTIVO",null,null,null,null,null,null,null,null,null,null,null,null,{"$f":"+Q30+Q44","v":0},{"$f":"+R30+R44","v":0}]
[]
[null,null,null,"CAPITAL PRÓPRIO E PASSIVO"]
[null,null,null,"CAPITAL PRÓPRIO  "]
[null,null,null,"Capital realizado"]
[null,null,null,"Acções (quotas) próprias "]
[null,null,null,"Outros instrumentos de capital próprio"]
[null,null,null,"Prémios de emissão"]
[null,null,null,"Reservas legais"]
[null,null,null,"Outras reservas"]
[null,null,null,"Resultados transitados"]
[null,null,null,"Ajustamentos em activos financeiros"]
[null,null,null,"Excedentes de revalorização"]
[null,null,null,"Outras variações no capital próprio"]
[null,null,null,"Resultado líquido do período "]
[null,null,null,"Interesses minoritários"]
[null,null,null,"Total do capital próprio",null,null,null,null,null,null,null,null,null,null,null,null,{"$f":"+Q48+Q49+Q50+Q51+Q52+Q53+Q54+Q55+Q56+Q57+Q58+Q59+Q60","v":0},{"$f":"+R48+R49+R50+R51+R52+R53+R54+R55+R56+R57+R58+R59+R60","v":0}]
[]
[null,null,null,"Passivo"]
[null,null,null,"Passivo não corrente"]
[null,null,null,"Provisões"]
[null,null,null,"Financiamentos obtidos"]
[null,null,null,"Responsabilidades por belefícios pós-emprego"]
[null,null,null,"Passivos por impostos diferidos"]
[null,null,null,"Outras contas a pagar"]
[null,null,null,null,null,null,null,null,null,null,null,null,null,null,null,null,{"$f":"+Q63+Q64+Q65+Q66+Q67+Q68+Q69","v":0},{"$f":"+R63+R64+R65+R66+R67+R68+R69","v":0}]
[null,null,null,"Passivo corrente"]
[null,null,null,"Fornecedores"]
[null,null,null,"Adiantamento de clientes"]
[null,null,null,"Estado e outros entes públicos"]
[null,null,null,"Accionistas/sócios"]
[null,null,null,"Financiamentos obtidos"]
[null,null,null,"Outras contas a pagar"]
[null,null,null,"Diferimentos"]
[null,null,null,"Passivos financeiros detidos para negociação"]
[null,null,null,"Outros passivos financeiros"]
[null,null,null,"Passivos não correntes detidos para venda"]
[null,null,null,null,null,null,null,null,null,null,null,null,null,null,null,null,{"$f":"+Q71+Q72+Q73+Q74+Q75+Q76+Q77+Q78+Q79+Q80+Q81","v":0},{"$f":"+R71+R72+R73+R74+R75+R76+R77+R78+R79+R80+R81","v":0}]
[null,null,null,"Total do passivo",null,null,null,null,null,null,null,null,null,null,null,null,{"$f":"+Q70+Q82","v":0},{"$f":"+R70+R82","v":0}]
[null,null,null,"Total do capital próprio e do passivo",null,null,null,null,null,null,null,null,null,null,null,null,{"$f":"+Q61+Q83","v":0},{"$f":"+R61+R83","v":0}]

{"sheet":"Balanço da empresa pós Proj","index":9,"n_rows":84,"n_cols":26,"rows_kept":84,"cut":false,"hidden":false,"merged":[[16,3,16,4],[16,16,16,25],[12,2,12,26],[14,2,14,7],[14,8,14,10],[13,8,13,10],[17,3,17,13],[17,14,17,15],[18,3,18,13],[18,14,18,15],[19,3,19,13],[19,14,19,15],[20,3,20,13],[20,14,20,15],[21,3,21,13],[21,14,21,15],[22,3,22,13],[22,14,22,15],[27,14,27,15],[26,3,26,13],[26,14,26,15],[27,3,27,13],[23,3,23,13],[23,14,23,15],[24,3,24,13],[24,14,24,15],[25,3,25,13],[25,14,25,15],[28,3,28,13],[28,14,28,15],[30,14,30,15],[31,14,31,15],[32,14,32,15],[30,3,30,13],[33,14,33,15],[34,14,34,15],[38,14,38,15],[35,14,35,15],[36,14,36,15],[37,14,37,15],[39,14,39,15],[41,14,41,15],[42,14,42,15],[43,14,43,15],[44,14,44,15],[40,14,40,15],[46,3,46,13],[46,14,46,15],[70,14,70,15],[58,14,58,15],[47,14,47,15],[48,14,48,15],[49,14,49,15],[50,14,50,15],[51,14,51,15],[52,14,52,15],[53,14,53,15],[54,14,54,15],[55,14,55,15],[56,14,56,15],[57,14,57,15],[65,14,65,15],[66,14,66,15],[67,14,67,15],[68,14,68,15],[69,14,69,15],[59,14,59,15],[60,14,60,15],[62,14,62,15],[63,14,63,15],[64,14,64,15],[3,2,3,17],[6,2,6,5],[10,2,10,17],[83,14,83,15],[72,14,72,15],[73,14,73,15],[74,14,74,15],[75,14,75,15],[76,14,76,15],[77,14,77,15],[78,14,78,15],[79,14,79,15],[80,14,80,15],[81,14,81,15],[82,14,82,15],[71,14,71,15]]}
[]
[null,null,"BENEFICIÁRIO:"]
[]
[null,null,{"$f":"+CAPA!C9","v":0}]
[]
[null,null,"NIF:"]
[null,null,{"$f":"+CAPA!C12","v":0}]
[]
[null,null,"SISTEMA DE INCENTIVOS:"]
[]
[null,null,{"$f":"+CAPA!C16","v":"EMPREENDER 2020 - Primeira alteração "}]
[]
[null,null,"BALANÇO DA EMPRESA PÓS PROJECTO"]
[null,null,null,null,null,null,null,null,"(inserir data)"]
[null,null,"Data de Inicio da despesa:"]
[]
[null,null,null,"(euros)",null,null,null,null,null,null,null,null,null,null,null,null,"EMPRESA PÓS PROJETO"]
[null,null,null,"ACTIVO",null,null,null,null,null,null,null,null,null,null,"Notas",null,{"$f":"IF(YEAR($I$15)=\"\",\"\",YEAR($I$15))","v":1900},{"$f":"IF(YEAR($I$15)=\"\",\"\",YEAR($I$15)+1)","v":1901},{"$f":"IF(YEAR($I$15)=\"\",\"\",YEAR($I$15)+2)","v":1902},{"$f":"IF(YEAR($I$15)=\"\",\"\",YEAR($I$15)+3)","v":1903},{"$f":"IF(YEAR($I$15)=\"\",\"\",YEAR($I$15)+4)","v":1904},{"$f":"IF(YEAR($I$15)=\"\",\"\",YEAR($I$15)+5)","v":1905},{"$f":"IF(YEAR($I$15)=\"\",\"\",YEAR($I$15)+6)","v":1906},{"$f":"IF(YEAR($I$15)=\"\",\"\",YEAR($I$15)+7)","v":1907},{"$f":"IF(YEAR($I$15)=\"\",\"\",YEAR($I$15)+8)","v":1908},{"$f":"IF(YEAR($I$15)=\"\",\"\",YEAR($I$15)+9)","v":1909}]
[null,null,null,"Activo não corrente"]
[null,null,null,"activos fixos tangíveis"]
[null,null,null,"Propriedades de investimento"]
[null,null,null,"Goodwill"]
[null,null,null,"Activos Intangíveis"]
[null,null,null,"Activos biológicos"]
[null,null,null,"Participações financeiras - método da equivalência patrimonial"]
[null,null,null,"Participações financeiras - outros métodos"]
[null,null,null,"Accionistas/sócios"]
[null,null,null,"Outros activos financeiros"]
[null,null,null,"Activos por impostos diferidos"]
[null,null,null,null,null,null,null,null,null,null,null,null,null,null,null,null,{"$f":"+Q20+Q21+Q22+Q23+Q24+Q25+Q26+Q27+Q28+Q29","v":0},{"$f":"+R20+R21+R22+R23+R24+R25+R26+R27+R28+R29","v":0},0,0,0,0,0,0,0,0]
[null,null,null,"Activo corrente"]
[null,null,null,"Inventários "]
[null,null,null,"Activos biológicos"]
[null,null,null,"Clientes"]
[null,null,null,"Adiantamentos a fornecedores"]
[null,null,null,"Estado e outros entes públicos"]
[null,null,null,"Accionistas/sócios"]
[null,null,null,"Outras contas a receber"]
[null,null,null,"Diferimentos"]
[null,null,null,"Activos financeiros detidos para negociação"]
[null,null,null,"Outros activos financeiros"]
[null,null,null,"Activos não correntes detidos para venda"]
[null,null,null,"Caixa e depósitos bancários"]
[null,null,null,null,null,null,null,null,null,null,null,null,null,null,null,null,{"$f":"+Q32+Q33+Q34+Q35+Q36+Q37+Q38+Q39+Q40+Q41+Q42+Q43","v":0},{"$f":"+R32+R33+R34+R35+R36+R37+R38+R39+R40+R41+R42+R43","v":0},0,0,0,0,0,0,0,0]
[null,null,null,"TOTAL DO ACTIVO",null,null,null,null,null,null,null,null,null,null,null,null,{"$f":"+Q30+Q44","v":0},0,0,0,0,0,0,0,0,0]
[]
[null,null,null,"CAPITAL PRÓPRIO E PASSIVO"]
[null,null,null,"CAPITAL PRÓPRIO  "]
[null,null,null,"Capital realizado"]
[null,null,null,"Acções (quotas) próprias "]
[null,null,null,"Outros instrumentos de capital próprio"]
[null,null,null,"Prémios de emissão"]
[null,null,null,"Reservas legais"]
[null,null,null,"Outras reservas"]
[null,null,null,"Resultados transitados"]
[null,null,null,"Ajustamentos em activos financeiros"]
[null,null,null,"Excedentes de revalorização"]
[null,null,null,"Outras variações no capital próprio"]
[null,null,null,"Resultado líquido do período "]
[null,null,null,"Interesses minoritários"]
[null,null,null,"Total do capital próprio",null,null,null,null,null,null,null,null,null,null,null,null,{"$f":"+Q48+Q49+Q50+Q51+Q52+Q53+Q54+Q55+Q56+Q57+Q58+Q59+Q60","v":0},0,0,0,0,0,0,0,0,0]
[]
[null,null,null,"Passivo"]
[null,null,null,"Passivo não corrente"]
[null,null,null,"Provisões"]
[null,null,null,"Financiamentos obtidos"]
[null,null,null,"Responsabilidades por belefícios pós-emprego"]
[null,null,null,"Passivos por impostos diferidos"]
[null,null,null,"Outras contas a pagar"]
[null,null,null,null,null,null,null,null,null,null,null,null,null,null,null,null,{"$f":"++Q65+Q66+Q67+Q68+Q69","v":0},{"$f":"+R63+R64+R65+R66+R67+R68+R69","v":0},0,0,0,0,0,0,0,0]
[null,null,null,"Passivo corrente"]
[null,null,null,"Fornecedores"]
[null,null,null,"Adiantamento de clientes"]
[null,null,null,"Estado e outros entes públicos"]
[null,null,null,"Accionistas/sócios"]
[null,null,null,"Financiamentos obtidos"]
[null,null,null,"Outras contas a pagar"]
[null,null,null,"Diferimentos"]
[null,null,null,"Passivos financeiros detidos para negociação"]
[null,null,null,"Outros passivos financeiros"]
[null,null,null,"Passivos não correntes detidos para venda"]
[null,null,null,null,null,null,null,null,null,null,null,null,null,null,null,null,{"$f":"+Q72+Q73+Q74+Q75+Q76+Q77+Q78+Q79+Q80+Q81","v":0},{"$f":"+R72+R73+R74+R75+R76+R77+R78+R79+R80+R81","v":0},0,0,0,0,0,0,0,0]
[null,null,null,"Total do passivo",null,null,null,null,null,null,null,null,null,null,null,null,{"$f":"+Q70+Q82","v":0},0,0,0,0,0,0,0,0,0]
[null,null,null,"Total do capital próprio e do passivo",null,null,null,null,null,null,null,null,null,null,null,null,{"$f":"+Q61+Q83","v":0},0,0,0,0,0,0,0,0,0]

{"sheet":"D. Resultados empresa","index":10,"n_rows":54,"n_cols":18,"rows_kept":54,"cut":false,"hidden":false,"merged":[[3,2,3,17],[6,2,6,5],[10,2,10,17],[12,2,12,18],[15,16,15,17],[16,3,16,13],[17,3,17,13],[17,14,17,15],[18,3,18,13],[19,3,19,13],[22,3,22,13],[23,3,23,13],[24,3,24,13],[25,3,25,13],[26,3,26,13],[27,3,27,13],[28,3,28,13],[29,3,29,13],[30,3,30,13],[31,3,31,13],[32,3,32,13],[33,3,33,13],[34,3,34,13],[35,3,35,13],[36,3,36,13],[37,3,37,13],[38,3,38,13],[39,3,39,13],[40,3,40,13],[41,3,41,13],[43,3,43,13],[43,14,43,15],[45,3,45,13],[45,14,45,15],[49,3,49,13],[49,14,49,15],[46,3,46,13],[46,14,46,15],[47,3,47,13],[47,14,47,15],[51,3,51,13],[51,14,51,15],[52,3,52,13],[52,14,52,15],[53,3,53,13],[53,14,53,15]]}
[]
[null,null,"BENEFICIÁRIO:"]
[]
[null,null,{"$f":"+CAPA!C9","v":0}]
[]
[null,null,"NIF:"]
[null,null,{"$f":"+CAPA!C12","v":0}]
[]
[null,null,"SISTEMA DE INCENTIVOS:"]
[]
[null,null,{"$f":"+CAPA!C16","v":"EMPREENDER 2020 - Primeira alteração "}]
[]
[null,null,"DEMONSTRAÇÃO DE RESULTADOS pré candidatura"]
[null,null,"  "]
[]
[null,null,null,null,null,null,null,null,null,null,null,null,null,null,null,null,"EMPRESA PRÉ CANDIDATURA"]
[null,null,null,null,null,null,null,null,null,null,null,null,null,null,"Notas",null,{"$f":"+'Balanço empresa '!Q18","v":1898},{"$f":"+'Balanço empresa '!R18","v":1899}]
[null,null,null,"RENDIMENTOS E GASTOS"]
[null,null,null,"Vendas e serviços prestados",null,null,null,null,null,null,null,null,null,null,null,"+"]
[null,null,null,"Subsídios à exploração",null,null,null,null,null,null,null,null,null,null,null,"+"]
[null,null,null,"Ganhos/perdas imputados de subsidiárias, associadas e empreendimentos conjuntos",null,null,null,null,null,null,null,null,null,null,null,"+/-"]
[null,null,null,"Variação nos inventários da produção",null,null,null,null,null,null,null,null,null,null,null,"+/-"]
[null,null,null,"Trabalhos para a própria entidade",null,null,null,null,null,null,null,null,null,null,null,"+"]
[null,null,null,"Custo das mercadorias vendidas e das matérias consumidas",null,null,null,null,null,null,null,null,null,null,null,"-"]
[null,null,null,"Fornecimentos e serviços externos",null,null,null,null,null,null,null,null,null,null,null,"-"]
[null,null,null,"Gastos com o pessoal",null,null,null,null,null,null,null,null,null,null,null,"-"]
[null,null,null,"Imparidade de inventários (perdas/reversões)",null,null,null,null,null,null,null,null,null,null,null,"-/+"]
[null,null,null,"Imparidade de dívidas a receber (perdas/reversões)",null,null,null,null,null,null,null,null,null,null,null,"-/+"]
[null,null,null,"Provisões (perdas/reduções)",null,null,null,null,null,null,null,null,null,null,null,"-/+"]
[null,null,null,"Imparidade de investimentos não depreciáveis/amortizações (perdas/reversões)",null,null,null,null,null,null,null,null,null,null,null,"-/+"]
[null,null,null,"Aumentos/reduções de justo valor",null,null,null,null,null,null,null,null,null,null,null,"+/-"]
[null,null,null,"Outros rendimentos e ganhos",null,null,null,null,null,null,null,null,null,null,null,"+"]
[null,null,null,"Outros gastos e perdas",null,null,null,null,null,null,null,null,null,null,null,"-"]
[null,null,null,"Resultados antes de depreciações, gastos de financiamento e impostos",null,null,null,null,null,null,null,null,null,null,null,"=",{"$f":"SUM(Q19:Q33)","v":0},{"$f":"SUM(R19:R33)","v":0}]
[null,null,null,"Gastos/reversões de depreciação e de amortização",null,null,null,null,null,null,null,null,null,null,null,"-/+"]
[null,null,null,"Imparidade de investimentos depreciáveis/amorizáveis (perdas/reversões)",null,null,null,null,null,null,null,null,null,null,null,"-/+"]
[null,null,null,"Resultado operacional (antes de gastos de financiamento e impostos)",null,null,null,null,null,null,null,null,null,null,null,"=",{"$f":"+Q34+Q35+Q36","v":0},{"$f":"+R34+R35+R36","v":0}]
[null,null,null,"Juros e rendimentos similares obtidos",null,null,null,null,null,null,null,null,null,null,null,"+"]
[null,null,null,"Juros e gastos similares suportados",null,null,null,null,null,null,null,null,null,null,null,"-"]
[null,null,null,"Resultado antes de impostos",null,null,null,null,null,null,null,null,null,null,null,"=",{"$f":"+Q37+Q38+Q39","v":0},{"$f":"+R37+R38+R39","v":0}]
[null,null,null,"Imposto sobre o rendimento do período",null,null,null,null,null,null,null,null,null,null,null,"-/+"]
[null,null,null,"Resultado líquido do período",null,null,null,null,null,null,null,null,null,null,null,"=",{"$f":"+Q40+Q41","v":0},{"$f":"+R40+R41","v":0}]
[]
[null,null,null,"Resultado das actividades descontinuadas (líquido de impostos) incluido no resultado líquido do período"]
[]
[null,null,null,"Resultado líquido do período atribuível a: (2)"]
[null,null,null,"Detentores do capital da empresa-mãe"]
[null,null,null,"Interesses minoritários"]
[null,null,null,null,null,null,null,null,null,null,null,null,null,null,null,"=",{"$f":"+Q47+Q48","v":0},{"$f":"+R47+R48","v":0}]
[null,null,null,"Resultado por acção básico"]
[]
[null,null,null,"Outros Dados"]
[null,null,null,"Gastos de Amortização"]
[null,null,null,"Volume de Negócios Internacional "]

{"sheet":"D. Result da empresa pós Proj","index":11,"n_rows":54,"n_cols":26,"rows_kept":54,"cut":false,"hidden":false,"merged":[[3,2,3,17],[6,2,6,5],[10,2,10,17],[12,2,12,26],[15,16,15,25],[16,3,16,13],[17,3,17,13],[17,14,17,15],[18,3,18,13],[19,3,19,13],[22,3,22,13],[23,3,23,13],[24,3,24,13],[25,3,25,13],[26,3,26,13],[27,3,27,13],[28,3,28,13],[29,3,29,13],[30,3,30,13],[31,3,31,13],[32,3,32,13],[33,3,33,13],[34,3,34,13],[35,3,35,13],[36,3,36,13],[37,3,37,13],[38,3,38,13],[39,3,39,13],[40,3,40,13],[41,3,41,13],[43,3,43,13],[43,14,43,15],[45,3,45,13],[45,14,45,15],[49,3,49,13],[49,14,49,15],[46,3,46,13],[46,14,46,15],[47,3,47,13],[47,14,47,15],[48,14,48,15],[51,3,51,13],[51,14,51,15],[52,3,52,13],[52,14,52,15],[53,3,53,13],[53,14,53,15]]}
[]
[null,null,"BENEFICIÁRIO:"]
[]
[null,null,{"$f":"+CAPA!C9","v":0}]
[]
[null,null,"NIF:"]
[null,null,{"$f":"+CAPA!C12","v":0}]
[]
[null,null,"SISTEMA DE INCENTIVOS:"]
[]
[null,null,{"$f":"+CAPA!C16","v":"EMPREENDER 2020 - Primeira alteração "}]
[]
[null,null,"DEMONSTRAÇÃO DE RESULTADOS DA EMPRESA PÓS PROJECTO"]
[null,null,"  "]
[]
[null,null,null,null,null,null,null,null,null,null,null,null,null,null,null,null,"EMPRESA PÓS PROJETO"]
[null,null,null,null,null,null,null,null,null,null,null,null,null,null,"Notas",null,{"$f":"+'Balanço do Projeto'!Q18","v":1900},{"$f":"+'Balanço do Projeto'!R18","v":1901},{"$f":"+'Balanço do Projeto'!S18","v":1902},{"$f":"+'Balanço do Projeto'!T18","v":1903},{"$f":"+'Balanço do Projeto'!U18","v":1904},{"$f":"+'Balanço do Projeto'!V18","v":1905},{"$f":"+'Balanço do Projeto'!W18","v":1906},{"$f":"+'Balanço do Projeto'!X18","v":1907},{"$f":"+'Balanço do Projeto'!Y18","v":1908},{"$f":"+'Balanço do Projeto'!Z18","v":1909}]
[null,null,null,"RENDIMENTOS E GASTOS"]
[null,null,null,"Vendas e serviços prestados",null,null,null,null,null,null,null,null,null,null,null,"+"]
[null,null,null,"Subsídios à exploração",null,null,null,null,null,null,null,null,null,null,null,"+"]
[null,null,null,"Ganhos/perdas imputados de subsidiárias, associadas e empreendimentos conjuntos",null,null,null,null,null,null,null,null,null,null,null,"+/-"]
[null,null,null,"Variação nos inventários da produção",null,null,null,null,null,null,null,null,null,null,null,"+/-"]
[null,null,null,"Trabalhos para a própria entidade",null,null,null,null,null,null,null,null,null,null,null,"+"]
[null,null,null,"Custo das mercadorias vendidas e das matérias consumidas",null,null,null,null,null,null,null,null,null,null,null,"-"]
[null,null,null,"Fornecimentos e serviços externos",null,null,null,null,null,null,null,null,null,null,null,"-"]
[null,null,null,"Gastos com o pessoal",null,null,null,null,null,null,null,null,null,null,null,"-"]
[null,null,null,"Imparidade de inventários (perdas/reversões)",null,null,null,null,null,null,null,null,null,null,null,"-/+"]
[null,null,null,"Imparidade de dívidas a receber (perdas/reversões)",null,null,null,null,null,null,null,null,null,null,null,"-/+"]
[null,null,null,"Provisões (perdas/reduções)",null,null,null,null,null,null,null,null,null,null,null,"-/+"]
[null,null,null,"Imparidade de investimentos não depreciáveis/amortizações (perdas/reversões)",null,null,null,null,null,null,null,null,null,null,null,"-/+"]
[null,null,null,"Aumentos/reduções de justo valor",null,null,null,null,null,null,null,null,null,null,null,"+/-"]
[null,null,null,"Outros rendimentos e ganhos",null,null,null,null,null,null,null,null,null,null,null,"+"]
[null,null,null,"Outros gastos e perdas",null,null,null,null,null,null,null,null,null,null,null,"-"]
[null,null,null,"Resultados antes de depreciações, gastos de financiamento e impostos",null,null,null,null,null,null,null,null,null,null,null,"=",{"$f":"SUM(Q19:Q33)","v":0},{"$f":"SUM(R19:R33)","v":0},0,0,0,0,0,0,0,0]
[null,null,null,"Gastos/reversões de depreciação e de amortização",null,null,null,null,null,null,null,null,null,null,null,"-/+"]
[null,null,null,"Imparidade de investimentos depreciáveis/amorizáveis (perdas/reversões)",null,null,null,null,null,null,null,null,null,null,null,"-/+"]
[null,null,null,"Resultado operacional (antes de gastos de financiamento e impostos)",null,null,null,null,null,null,null,null,null,null,null,"=",{"$f":"+Q34+Q35+Q36","v":0},0,0,0,0,0,0,0,0,0]
[null,null,null,"Juros e rendimentos similares obtidos",null,null,null,null,null,null,null,null,null,null,null,"+"]
[null,null,null,"Juros e gastos similares suportados",null,null,null,null,null,null,null,null,null,null,null,"-"]
[null,null,null,"Resultado antes de impostos",null,null,null,null,null,null,null,null,null,null,null,"=",{"$f":"+Q37+Q38+Q39","v":0},0,0,0,0,0,0,0,0,0]
[null,null,null,"Imposto sobre o rendimento do período",null,null,null,null,null,null,null,null,null,null,null,"-/+"]
[null,null,null,"Resultado líquido do período",null,null,null,null,null,null,null,null,null,null,null,"=",{"$f":"+Q40+Q41","v":0},0,0,0,0,0,0,0,0,0]
[]
[null,null,null,"Resultado das actividades descontinuadas (líquido de impostos) incluido no resultado líquido do período"]
[]
[null,null,null,"Resultado líquido do período atribuível a: (2)"]
[null,null,null,"Detentores do capital da empresa-mãe"]
[null,null,null,"Interesses minoritários"]
[null,null,null,null,null,null,null,null,null,null,null,null,null,null,"=",null,{"$f":"+Q47+Q48","v":0},0,0,0,0,0,0,0,0,0]
[null,null,null,"Resultado por acção básico"]
[null,null,null,"ATENÇÃO - CAMPO DE PREENCHIMENTO OBRIGATÓRIO:"]
[null,null,null,"Outros Dados"]
[null,null,null,"Gastos de Amortização"]
[null,null,null,"Volume de Negócios Internacional "]

{"sheet":"Balanço do Projeto","index":12,"n_rows":84,"n_cols":26,"rows_kept":84,"cut":false,"hidden":false,"merged":[[16,3,16,4],[16,16,16,25],[14,2,14,7],[14,8,14,10],[17,3,17,13],[17,14,17,15],[18,3,18,13],[18,14,18,15],[19,3,19,13],[19,14,19,15],[20,3,20,13],[20,14,20,15],[21,3,21,13],[21,14,21,15],[22,3,22,13],[22,14,22,15],[23,3,23,13],[23,14,23,15],[24,3,24,13],[24,14,24,15],[25,3,25,13],[25,14,25,15],[26,3,26,13],[26,14,26,15],[28,3,28,13],[28,14,28,15],[40,14,40,15],[30,3,30,13],[30,14,30,15],[31,14,31,15],[32,14,32,15],[33,14,33,15],[66,14,66,15],[58,14,58,15],[47,14,47,15],[48,14,48,15],[49,14,49,15],[50,14,50,15],[51,14,51,15],[52,14,52,15],[53,14,53,15],[54,14,54,15],[59,14,59,15],[60,14,60,15],[62,14,62,15],[63,14,63,15],[64,14,64,15],[65,14,65,15],[3,2,3,17],[6,2,6,5],[10,2,10,17],[12,2,12,26],[56,14,56,15],[44,14,44,15],[46,3,46,13],[46,14,46,15],[34,14,34,15],[35,14,35,15],[36,14,36,15],[37,14,37,15],[38,14,38,15],[39,14,39,15],[27,3,27,13],[27,14,27,15],[57,14,57,15],[55,14,55,15],[41,14,41,15],[42,14,42,15],[43,14,43,15],[67,14,67,15],[68,14,68,15],[69,14,69,15],[70,14,70,15],[71,14,71,15],[81,14,81,15],[82,14,82,15],[83,14,83,15],[72,14,72,15],[73,14,73,15],[74,14,74,15],[75,14,75,15],[76,14,76,15],[77,14,77,15],[78,14,78,15],[79,14,79,15],[80,14,80,15]]}
[]
[null,null,"BENEFICIÁRIO:"]
[]
[null,null,{"$f":"+CAPA!C9","v":0}]
[]
[null,null,"NIF:"]
[null,null,{"$f":"+CAPA!C12","v":0}]
[]
[null,null,"SISTEMA DE INCENTIVOS:"]
[]
[null,null,{"$f":"+CAPA!C16","v":"EMPREENDER 2020 - Primeira alteração "}]
[]
[null,null,"BALANÇO DO PROJETO"]
[]
[null,null,"Data de Inicio da despesa:",null,null,null,null,null,{"$f":"+'Balanço da empresa pós Proj'!I15:K15","v":"00:00:00"}]
[]
[null,null,null,"(euros)",null,null,null,null,null,null,null,null,null,null,null,null,"Projecto"]
[null,null,null,"ACTIVO",null,null,null,null,null,null,null,null,null,null,"Notas",null,{"$f":"IF(YEAR($I$15)=\"\",\"\",YEAR($I$15))","v":1900},{"$f":"IF(YEAR($I$15)=\"\",\"\",YEAR($I$15)+1)","v":1901},{"$f":"IF(YEAR($I$15)=\"\",\"\",YEAR($I$15)+2)","v":1902},{"$f":"IF(YEAR($I$15)=\"\",\"\",YEAR($I$15)+3)","v":1903},{"$f":"IF(YEAR($I$15)=\"\",\"\",YEAR($I$15)+4)","v":1904},{"$f":"IF(YEAR($I$15)=\"\",\"\",YEAR($I$15)+5)","v":1905},{"$f":"IF(YEAR($I$15)=\"\",\"\",YEAR($I$15)+6)","v":1906},{"$f":"IF(YEAR($I$15)=\"\",\"\",YEAR($I$15)+7)","v":1907},{"$f":"IF(YEAR($I$15)=\"\",\"\",YEAR($I$15)+8)","v":1908},{"$f":"IF(YEAR($I$15)=\"\",\"\",YEAR($I$15)+9)","v":1909}]
[null,null,null,"Activo não corrente"]
[null,null,null,"activos fixos tangíveis"]
[null,null,null,"Propriedades de investimento"]
[null,null,null,"Goodwill"]
[null,null,null,"Activos Intangíveis"]
[null,null,null,"Activos biológicos"]
[null,null,null,"Participações financeiras - método da equivalência patrimonial"]
[null,null,null,"Participações financeiras - outros métodos"]
[null,null,null,"Accionistas/sócios"]
[null,null,null,"Outros activos financeiros"]
[null,null,null,"Activos por impostos diferidos"]
[null,null,null,null,null,null,null,null,null,null,null,null,null,null,null,null,{"$f":"+Q20+Q21+Q22+Q23+Q24+Q25+Q26+Q27+Q28+Q29","v":0},{"$f":"+R20+R21+R22+R23+R24+R25+R26+R27+R28+R29","v":0},0,0,0,0,0,0,0,0]
[null,null,null,"Activo corrente"]
[null,null,null,"Inventários "]
[null,null,null,"Activos biológicos"]
[null,null,null,"Clientes"]
[null,null,null,"Adiantamentos a fornecedores"]
[null,null,null,"Estado e outros entes públicos"]
[null,null,null,"Accionistas/sócios"]
[null,null,null,"Outras contas a receber"]
[null,null,null,"Diferimentos"]
[null,null,null,"Activos financeiros detidos para negociação"]
[null,null,null,"Outros activos financeiros"]
[null,null,null,"Activos não correntes detidos para venda"]
[null,null,null,"Caixa e depósitos bancários"]
[null,null,null,null,null,null,null,null,null,null,null,null,null,null,null,null,{"$f":"+Q32+Q33+Q34+Q35+Q36+Q37+Q38+Q39+Q40+Q41+Q42+Q43","v":0},{"$f":"+R32+R33+R34+R35+R36+R37+R38+R39+R40+R41+R42+R43","v":0},0,0,0,0,0,0,0,0]
[null,null,null,"TOTAL DO ACTIVO",null,null,null,null,null,null,null,null,null,null,null,null,{"$f":"+Q30+Q44","v":0},0,0,0,0,0,0,0,0,0]
[]
[null,null,null,"CAPITAL PRÓPRIO E PASSIVO"]
[null,null,null,"CAPITAL PRÓPRIO  "]
[null,null,null,"Capital realizado"]
[null,null,null,"Acções (quotas) próprias "]
[null,null,null,"Outros instrumentos de capital próprio"]
[null,null,null,"Prémios de emissão"]
[null,null,null,"Reservas legais"]
[null,null,null,"Outras reservas"]
[null,null,null,"Resultados transitados"]
[null,null,null,"Ajustamentos em activos financeiros"]
[null,null,null,"Excedentes de revalorização"]
[null,null,null,"Outras variações no capital próprio"]
[null,null,null,"Resultado líquido do período "]
[null,null,null,"Interesses minoritários"]
[null,null,null,"Total do capital próprio",null,null,null,null,null,null,null,null,null,null,null,null,{"$f":"+Q49+Q50+Q51+Q52+Q53+Q54+Q55+Q56+Q57+Q58+Q59+Q60","v":0},{"$f":"+R49+R50+R51+R52+R53+R54+R55+R56+R57+R58+R59+R60","v":0},0,0,0,0,0,0,0,0]
[]
[null,null,null,"Passivo"]
[null,null,null,"Passivo não corrente"]
[null,null,null,"Provisões"]
[null,null,null,"Financiamentos obtidos"]
[null,null,null,"Responsabilidades por belefícios pós-emprego"]
[null,null,null,"Passivos por impostos diferidos"]
[null,null,null,"Outras contas a pagar"]
[null,null,null,null,null,null,null,null,null,null,null,null,null,null,null,null,{"$f":"++Q65+Q66+Q67+Q68+Q69","v":0},{"$f":"++R65+R66+R67+R68+R69","v":0},0,0,0,0,0,0,0,0]
[null,null,null,"Passivo corrente"]
[null,null,null,"Fornecedores"]
[null,null,null,"Adiantamento de clientes"]
[null,null,null,"Estado e outros entes públicos"]
[null,null,null,"Accionistas/sócios"]
[null,null,null,"Financiamentos obtidos"]
[null,null,null,"Outras contas a pagar"]
[null,null,null,"Diferimentos"]
[null,null,null,"Passivos financeiros detidos para negociação"]
[null,null,null,"Outros passivos financeiros"]
[null,null,null,"Passivos não correntes detidos para venda"]
[null,null,null,null,null,null,null,null,null,null,null,null,null,null,null,null,{"$f":"+Q72+Q73+Q74+Q75+Q76+Q77+Q78+Q79+Q80+Q81","v":0},{"$f":"+R72+R73+R74+R75+R76+R77+R78+R79+R80+R81","v":0},0,0,0,0,0,0,0,0]
[null,null,null,"Total do passivo",null,null,null,null,null,null,null,null,null,null,null,null,{"$f":"+Q70+Q82","v":0},0,0,0,0,0,0,0,0,0]
[null,null,null,"Total do capital próprio e do passivo",null,null,null,null,null,null,null,null,null,null,null,null,{"$f":"+Q61+Q83","v":0},0,0,0,0,0,0,0,0,0]

{"sheet":"D. Resultados do Projeto","index":13,"n_rows":50,"n_cols":26,"rows_kept":50,"cut":false,"hidden":false,"merged":[[12,2,12,26],[15,16,15,25],[16,3,16,13],[17,3,17,13],[17,14,17,15],[18,3,18,13],[19,3,19,13],[22,3,22,13],[23,3,23,13],[24,3,24,13],[34,3,34,13],[25,3,25,13],[26,3,26,13],[27,3,27,13],[28,3,28,13],[29,3,29,13],[49,3,49,13],[49,14,49,15],[43,3,43,13],[43,14,43,15],[45,3,45,13],[45,14,45,15],[46,3,46,13],[46,14,46,15],[3,2,3,17],[6,2,6,5],[10,2,10,17],[47,3,47,13],[47,14,47,15],[39,3,39,13],[40,3,40,13],[41,3,41,13],[36,3,36,13],[37,3,37,13],[38,3,38,13],[35,3,35,13],[30,3,30,13],[31,3,31,13],[32,3,32,13],[33,3,33,13]]}
[]
[null,null,"BENEFICIÁRIO:"]
[]
[null,null,{"$f":"+CAPA!C9","v":0}]
[]
[null,null,"NIF:"]
[null,null,{"$f":"+CAPA!C12","v":0}]
[]
[null,null,"SISTEMA DE INCENTIVOS:"]
[]
[null,null,{"$f":"+CAPA!C16","v":"EMPREENDER 2020 - Primeira alteração "}]
[]
[null,null,"DEMONSTRAÇÃO DE RESULTADOS DO PROJECTO"]
[null,null,"  "]
[]
[null,null,null,null,null,null,null,null,null,null,null,null,null,null,null,null,"Projecto"]
[null,null,null,null,null,null,null,null,null,null,null,null,null,null,"Notas",null,{"$f":"+'Balanço do Projeto'!Q18","v":1900},{"$f":"+'Balanço do Projeto'!R18","v":1901},{"$f":"+'Balanço do Projeto'!S18","v":1902},{"$f":"+'Balanço do Projeto'!T18","v":1903},{"$f":"+'Balanço do Projeto'!U18","v":1904},{"$f":"+'Balanço do Projeto'!V18","v":1905},{"$f":"+'Balanço do Projeto'!W18","v":1906},{"$f":"+'Balanço do Projeto'!X18","v":1907},{"$f":"+'Balanço do Projeto'!Y18","v":1908},{"$f":"+'Balanço do Projeto'!Z18","v":1909}]
[null,null,null,"RENDIMENTOS E GASTOS"]
[null,null,null,"Vendas e serviços prestados",null,null,null,null,null,null,null,null,null,null,null,"+"]
[null,null,null,"Subsídios à exploração",null,null,null,null,null,null,null,null,null,null,null,"+"]
[null,null,null,"Ganhos/perdas imputados de subsidiárias, associadas e empreendimentos conjuntos",null,null,null,null,null,null,null,null,null,null,null,"+/-"]
[null,null,null,"Variação nos inventários da produção",null,null,null,null,null,null,null,null,null,null,null,"+/-"]
[null,null,null,"Trabalhos para a própria entidade",null,null,null,null,null,null,null,null,null,null,null,"+"]
[null,null,null,"Custo das mercadorias vendidas e das matérias consumidas",null,null,null,null,null,null,null,null,null,null,null,"-"]
[null,null,null,"Fornecimentos e serviços externos",null,null,null,null,null,null,null,null,null,null,null,"-"]
[null,null,null,"Gastos com o pessoal",null,null,null,null,null,null,null,null,null,null,null,"-"]
[null,null,null,"Imparidade de inventários (perdas/reversões)",null,null,null,null,null,null,null,null,null,null,null,"-/+"]
[null,null,null,"Imparidade de dívidas a receber (perdas/reversões)",null,null,null,null,null,null,null,null,null,null,null,"-/+"]
[null,null,null,"Provisões (perdas/reduções)",null,null,null,null,null,null,null,null,null,null,null,"-/+"]
[null,null,null,"Imparidade de investimentos não depreciáveis/amortizações (perdas/reversões)",null,null,null,null,null,null,null,null,null,null,null,"-/+"]
[null,null,null,"Aumentos/reduções de justo valor",null,null,null,null,null,null,null,null,null,null,null,"+/-"]
[null,null,null,"Outros rendimentos e ganhos",null,null,null,null,null,null,null,null,null,null,null,"+"]
[null,null,null,"Outros gastos e perdas",null,null,null,null,null,null,null,null,null,null,null,"-"]
[null,null,null,"Resultados antes de depreciações, gastos de financiamento e impostos",null,null,null,null,null,null,null,null,null,null,null,"=",{"$f":"SUM(Q19:Q33)","v":0},{"$f":"SUM(R19:R33)","v":0},0,0,0,0,0,0,0,0]
[null,null,null,"Gastos/reversões de depreciação e de amortização",null,null,null,null,null,null,null,null,null,null,null,"-/+"]
[null,null,null,"Imparidade de investimentos depreciáveis/amorizáveis (perdas/reversões)",null,null,null,null,null,null,null,null,null,null,null,"-/+"]
[null,null,null,"Resultado operacional (antes de gastos de financiamento e impostos)",null,null,null,null,null,null,null,null,null,null,null,"=",{"$f":"+Q34+Q35+Q36","v":0},0,0,0,0,0,0,0,0,0]
[null,null,null,"Juros e rendimentos similares obtidos",null,null,null,null,null,null,null,null,null,null,null,"+"]
[null,null,null,"Juros e gastos similares suportados",null,null,null,null,null,null,null,null,null,null,null,"-"]
[null,null,null,"Resultado antes de impostos",null,null,null,null,null,null,null,null,null,null,null,"=",{"$f":"+Q37+Q38+Q39","v":0},0,0,0,0,0,0,0,0,0]
[null,null,null,"Imposto sobre o rendimento do período",null,null,null,null,null,null,null,null,null,null,null,"-/+"]
[null,null,null,"Resultado líquido do período",null,null,null,null,null,null,null,null,null,null,null,"=",{"$f":"+Q40+Q41","v":0},0,0,0,0,0,0,0,0,0]
[]
[null,null,null,"Resultado das actividades descontinuadas (líquido de impostos) incluido no resultado líquido do período"]
[]
[null,null,null,"Resultado líquido do período atribuível a: (2)"]
[null,null,null,"Detentores do capital da empresa-mãe"]
[null,null,null,"Interesses minoritários"]
[null,null,null,null,null,null,null,null,null,null,null,null,null,null,null,"=",{"$f":"+Q47+Q48","v":0},0,0,0,0,0,0,0,0,0]
[null,null,null,"Resultado por acção básico"]

{"sheet":"Folha2","index":14,"n_rows":8,"n_cols":3,"rows_kept":8,"cut":false,"hidden":true,"merged":[]}
[]
[]
[null,null,"Sistemas de Incentivos"]
[null,null,"----- Escolha -----"]
[null,null,"INOVAR 2020"]
[null,null,"EMPREENDER 2020"]
[null,null,"INTERNACIONALIZAR 2020"]
[null,null,"PROCiência 2020"]